Workbook

Sheet Cover Page
D1: Add company logo
N2: Version 24.2b (for incinerators) - 27/11/24
N4: Note that there is another version of this template available for co-incinerators
B8: Add photo
N13: Notes:
N14: This template may require adjustments by individual operators to meet specific reporting requirements as defined in the site Permit(s)
B29: Annual Performance Report 2024
B31: Permit EPR/ZP3937KL
B33: Severnside Energy Recovery Centre
B37: SUEZ Recycling and Recovery UK Ltd
B39: Year: | C39: 2024
B41: Address: | C41: Severn Road, Severnside, Hallen, South Gloucestershire, BS10 7GB
B43: Tel: | C43: 0117 938 1229
B45: Email: | C45: enquiries.uk@suez.com
B47: Prepared by: | C47: Jasmine Bressler Krishna Patel Richard Watkins | F47: Position: | G47: EIR Advisor Technical Plant Engineer EIR Manager
B49: Approved by: | C49: David Appleby | F49: Position: | G49: Plant Manager
B51: Version: | C51: 1
B53: Issue Date: | C53: 2025-01-27

Sheet Facility Info
A1: =+'Cover Page'!$B$29 -> Annual Performance Report 2024 | E1: =+'Cover Page'!$B$33 -> Severnside Energy Recovery Centre
A3: Plant Description and Design | K3: Notes:
A5: The installation is an Energy from Waste (EfW) plant which can process up to 467,082 tonnes of residual (non-recyclable) Commercial and Industrial and Municipal waste per annum, leading to a net export of approximately 37 MW of electrical energy to the National Grid. The facility comprises two identical moving grate incinerator combustion lines with a combined capacity of approximately 50 tonne/hr of waste of an approximate 9.8MJ/kg calorific value. The waste is delivered to the site by road, and rail by a dedicated onsite railhead served by two gantry cranes. The plant has two auxiliary burners to support start-up and shutdown on each incineration line, and a stand-by diesel generator to support emergency shutdown in the event of power failure. The incinerator bottom ash (IBA) waste on the site is quenched to control dust fugitive emissions and transferred by covered conveyors to the onsite bottom ash recycling plant. The bottom ash recycling plant uses magnets, eddy current separators and a trommel to recover ferrous metals and non-ferrous metals from the bottom ash. Hazardous air pollution control residues (APCR) from the flue gas treatment plant are collected and removed offsite for treatment. The treatment process involves the removal of contaminants and reuse of the fine ash material in a lime rich filter cake product for land remediation. SNCR (ammonia) is used to reduce emissions of oxides of nitrogen, lime to reduce acid gas emissions and carbon injection for reduction of organics including dioxins and PAH emissions, and heavy metals. Bag filters within the flue gas treatment plant remove dust (particulates) from the emissions to air. The treated emissions to air are released through two 118 metre stacks comprising two flues that run the full length of the stack (one for each incineration line). A continuous emissions monitoring system (CEMS) is installed, as required by the permit, to provide continuous analysis of oxides of nitrogen, sulphur dioxide, carbon monoxide, carbon dioxide, hydrogen chloride, particulates, total organic carbon, ammonia and nitrous oxide emissions to air from the two stacks. The main emissions to air from the site are the combustion gases, predominantly carbon dioxide and water vapour. Trace gases present include oxides of nitrogen, sulphur dioxide, hydrogen chloride, ammonia, dioxins and furans, dioxin like PCB's and polyaromatic hydrocarbons. Very low levels of particulates and some heavy metals may also be present. There are no emissions from the process to controlled waters. Water discharge of uncontaminated surface (rain) water is permitted. The Severn Estuary SAC, SSSI, SPA and RAMSAR sites are within 10km of the site, along with the River Wye and Avon Gorge Woodlands. | K5: Include summary of plant design, design capacity, no. of combustion lines, electrical and heat capacity and any other general information that describes the facility, its location and purpose
A20: Summary of Operational Processes and Procedures
A22: Activity listed in Schedule 1 of the EP Regulations S5.1 A1 (b) The incineration of non-hazardous waste in a waste incineration plant with a capacity of 3 tonnes per hour or more. From receipt of commercial, industrial and municipal waste by road and/or rail to storage of gas oil auxiliary fuel, to incineration of waste and removal of ash. The receipt, handling, storage, processing and treatment of incinerator bottom ash only from within the installation. Directly Associated Activities The generation of up to 39 MWe electrical power, with approximately 37 MWe for export to the National Grid, using a steam turbine from energy recovered from the flue gases. From receipt of commercial, industrial and municipal waste by road and/or rail to storage of gas oil auxiliary fuel, to incineration of waste and removal of ash. The receipt, handling, storage, processing and treatment of incinerator bottom ash only from within the installation. Standby diesel generator for providing emergency electrical power to the plant in the event of supply interruption. From receipt of diesel fuel to production of electricity for controlled shutdown of incinerator in the event of power failure at the site. Railhead; operation of designated railhead for the receipt of waste for thermal treatment and the potential dispatch by rail of recycled bottom ash as a secondary aggregate. From receipt of waste to the potential loading of processed IBA, limited within the site boundary. Plant Description Incoming contract waste is delivered to site by rail with each train carrying approximately 1,000 tonnes of waste in 78 containers. Each container is transferred by gantry crane to roll on/off vehicles and taken to the Tipping Hall for unloading into the waste bunker. Third party waste is received by road, checked in, weighed and delivered into the reception hall by Roro’s, refuse collection vehicles and bulk transport vehicles. RECEPTION HALL A large reception hall allows for vehicles delivering waste to the site to manoeuvre and tip waste safely. The tipping hall is constructed above ground level as part of the sites flood protection strategy. HGV access to and egress from the Tipping Hall is via ramps on the south and north sides of the building. Air needed for combustion is drawn into the furnace from here (above the waste bunker) so that negative pressure is maintained in order to avoid odour and dust escaping the building. The tipping hall also includes an automatic dust and odour suppression system. WASTE BUNKER Waste vehicles reverse to a wheel stop and tip their loads into a large concrete bunker. The waste cranes operate over the waste bunker automatically to mix the waste to improve the homogeneity of the incinerator feedstock and feed the waste hoppers for each incineration line. Manual control by crane operators is carried out as and when required. Inspection of wastes received is carried out by the Day Operations team to look for unsuitable material and non-permitted wastes to be removed. CONTROL ROOM The plant’s control room contains the Distributed Control System (DCS) which centralises the operation of the plant, and all equipment, including the grab cranes used to mix and load waste into the hoppers that feed the incineration lines. All on-site functions are monitored automatically and manually. Its systems verify in real time that equipment is functioning properly, continuously monitor the combustion processes, flue gases, and maximise the efficiency of the entire EfW process. GRATE AND BOILER Waste is lifted into the feed hoppers by the waste cranes. From here it is dropped into the furnace feed chute and then is introduced onto the grate system by hydraulic ram feeders for incineration. Auxiliary burners are used at start up and shut down, and can be used to help keep the furnace temperature above 850°C if required. The plant has two auxiliary burners per incineration line. The thermal energy released from the incineration of waste is used to convert water to super-heated steam through the boiler and 5th pass superheater. At high pressure, this steam drives a turbine to generate electricity. ELECTRICITY GENERATION The turbine drives a step down gearbox, which in turn drives a generator. Electricity is generated at 11kv, with electricity production of 312,000 MWh/annum (based on 39MW and 8,000 operating hours) and exporting approximately 296,000 MWh/annum to the national grid. INCINERATOR BOTTOM ASH (IBA) Ash left on the grate after incineration falls through the grate riddling's or off the end of the grate, is combined with boiler ash produced in the superheater and passes into the bottom ash extractor. The bottom ash extractor contains water to quench the ash and to provide an air seal for the furnace. The material is removed from the bottom ash extractor by a drag conveyor passing the material onto the vibrating fingers for removal of the oversize metal content. The oversize metal drops into a skip for collection and the remaining IBA material is dropped onto a conveyor for transport to the on site IBA recycling plant. Up to 100,000 tonnes per annum of IBA is produced and then processed on site by the removal of ferrous and non-ferrous metal, stabilised and separated into fraction sizes prior to the export from site of the recovered aggregates and metals for re-use. AIR-COOLED CONDENSERS After exiting the turbine, the steam is cooled and condensed back into water through air cooled condensers. This recovered water is collected in the condensate tank, treated and returned to the feedwater system to supply the boiler drum and to produce more steam, thus reducing consumption of mains water. EMISSION CONTROL The flue gases from the incineration of waste are subject to a rigorous cleaning process involving ammonia for removal of Nitrogen Oxides (NOx) by selective non-catalytic reduction (SNCR). A DyNor (Dynamic NOx Reduction system) is used to optimise NOx reduction and reduce ammonia slip by altering the ammonia injection point into the furnace, dependent on the temperature profile, so the injection takes place where the SNCR reaction will be most effective. Lime and powdered activated carbon is injected into the reactor where the lime removes acidic gases such as sulphur dioxide (SO2) and hydrogen chloride (HCL), and the activated carbon removes heavy metals, dioxins and furans. AIR POLLUTION CONTROL RESIDUE (APCR) The cleaned flue gases pass from the reactor through fine-fabric bag filters to remove solid particulates (dust). The bag filters become coated with lime and carbon and provides a further reaction surface increasing the effectiveness of the carbon and lime. When the pressure differential between the inside of the fabric filters becomes too great, a jet of compressed air is used to remove some of the reagents and ash caking the outside of the bag filters. Some of this material is recirculated back into the reactor where atomised water jets reactive the reagents for further use in the reactor. The remaining APCR collected from the bag filter housing contains ash particles from the incineration process, spent lime used in the flue gas treatment, salts and carbon dust. It is transported to and stored in two sealed silo’s until it is tankered away for recovery. CONTINUOUS EMISSIONS MONITORING SYSTEM (CEMS) The flue gases are drawn through the flue gas treatment system by large induction fans which then vent and discharge the treated flue gases to atmosphere via the stacks. A continuous emissions monitoring system is installed on each stack to monitor these emissions. The data is used to make any necessary adjustment to reagent dosing to ensure compliance with permit Emission Limit Values (ELV’s). This data is relayed automatically to the control room and is under close observation by the Operations Team. The CEMS is subject to QAL3 calibration tests (zero and span checks) performed monthly by the maintenance team, and an external contractor carries out annual servicing, calibration and emission testing as required by the permit. | K22: Include summary of key processes and procedures such as (but not limited to); waste reception, control rooms, grate, bed and boiler, energy & heat generation, cooling systems, residue management, emission controls, health and safety systems, maintenance

Sheet Contents
A1: =+'Cover Page'!$B$29 -> Annual Performance Report 2024 | E1: =+'Cover Page'!$B$33 -> Severnside Energy Recovery Centre
A3: Contents | K3: Notes:
A4: Section | B4: Subject | H4: Page | K4: Section references and Page nos. to be inserted
B5: Facility Information | K5: Sections and Subjects may require adjustment by individual operators to meet specific reporting requirements as defined in the sites Permit(s)
B6: Operational Data
B7: Operational Summary
B8: Performance Form 1
B9: Energy Form 1
B10: Permit Compliance
B11: Improvements
B12: Public Liaison
B13: Carbon dioxide and nitrous oxide emissions
B14: Residue Quality
B15: Emissions to Water
B16: Emissions to Air (periodically monitored)
B17: Emissions to Air (continuously monitored)
B18: Hydrogen Chloride emissions
B19: Sulphur Dioxide emissions
B20: Oxides of Nitrogen emissions
B21: Total Organic Carbon emissions
B22: Particulate Matter emissions
B23: Carbon Monoxide emissions
B24: Ammonia emissions
A27: Version Control
A28: Section | B28: Information | H28: Date
A29: 1 | B29: Original Document | H29: 2025-01-27
A35: Distribution
A36: Copy | B36: Name, Role | H36: No.
A37: EA | B37: Paul Scotford, Site Regulatory Officer | H37: 1
A38: SUEZ | B38: David Appleby, Plant Manager | H38: 2
A45: This report is required under the Industrial Emissions Directive’s Article 55(2) requirements on reporting and public information on waste incineration plants and co-incineration plants, which require the operator to produce an annual report on the functioning and monitoring of the plant and make it available to the public.

Sheet Operational Data
A1: =+'Cover Page'!$B$29 -> Annual Performance Report 2024 | E1: =+'Cover Page'!$B$33 -> Severnside Energy Recovery Centre
A3: Operational Data
A4: Plant Size | B4: 467082 | D4: tonnes pa | E4: 131 | F4: MWth | G4: 39 | H4: MWe | J4: Notes:
A5: No. of combustion lines | B5: 2 | D5: No. of Turbines: | F5: 1 | J5: * - RDF to include SRF
J6: ** - Combusted tonnage = tonnes delivered in period + (tonnes in bunker at start of period – tonnes in bunker at end of period), or equivalent calculation depending on plant type
A7: Waste types received | B7: Unit | C7: Q1 | D7: Q2 | E7: Q3 | F7: Q4 | G7: Year Total | H7: %
A8: Household / Local Authority | B8: tonnes | C8: 10981 | D8: 13264 | E8: 14069 | F8: 20484 | G8: =SUM(C8:F8) -> 58798 | H8: =IF(G8>0,G8/$G$18,"-") -> 0.1502931839
A9: Commercial & Industrial | C9: 5403 | D9: 4202 | E9: 3737 | F9: 7759 | G9: =SUM(C9:F9) -> 21101 | H9: 0.05393612834 | J9: *** - CHP plants only
A10: Hazardous | G10: 0 | H10: - | J10: **** Availability Definition: 'the availability of a line is to be calculated by the number of hours the line reported Continuously Monitored emission levels to the Regulator through the calendar year divided by the total number of hours in that year. The overall plant availability is calculated as the Mean of all lines in the plant. For clarity this includes periods of abnormal operation.' Rationale: The primary function of an Energy from Waste facility is the disposal of waste. It follows therefore that the availability of a plant is determined by the period of time a facility spends undertaking this activity.
A11: Clinical | G11: 0 | H11: -
A12: Waste wood (biomass) | G12: 0 | H12: -
A13: Refuse Derived Fuel * - H'hold/LA | C13: 85043 | D13: 64787 | E13: 82060 | F13: 79433 | G13: =SUM(C13:F13) -> 311323 | H13: 0.7957706877
A14: Refuse Derived Fuel * - C&I | G14: 0 | H14: -
A15: Other [Please specify] | G15: 0 | H15: -
A16: Other [Please specify] | G16: 0 | H16: -
A17: Other [Please specify] | G17: 0 | H17: -
A18: Total waste received | C18: =SUM(C8:C17) -> 101427 | D18: =SUM(D8:D17) -> 82253 | E18: =SUM(E8:E17) -> 99866 | F18: =SUM(F8:F17) -> 107676 | G18: 391222
A19: Rejected Waste | C19: 6 | D19: 4.4 | E19: 27.54 | F19: 7 | G19: =SUM(C19:F19) -> 44.94 | H19: =IF(G19>0,G19/$G$18,"-") -> 0.0001148708406
A20: Unprocessed waste transferred out | C20: 330 | D20: 361.54 | E20: 178 | F20: 153.17 | G20: =SUM(C20:F20) -> 1022.71 | H20: =IF(G20>0,G20/$G$18,"-") -> 0.002614142354
A21: Total waste combusted ** | C21: =C18-C19-C20 -> 101091 | D21: =D18-D19-D20 -> 81887.06 | E21: 99660.46 | F21: 107515.83 | G21: =SUM(C21:F21) -> 390154.35
J22: Password for protected cells A password has been set to prevent accidental editing of cells with formulae. If you still need to make an edit for some reason then the password = 1234
A23: Energy Usage / Export | B23: Unit | C23: Q1 | D23: Q2 | E23: Q3 | F23: Q4 | G23: Year Total | H23: KWh/te
A24: Power Generated | B24: MWh | C24: 67982.79223 | D24: 55831.78138 | E24: 76703.8093 | F24: 75843.23524 | G24: =SUM(C24:F24) -> 276361.6182 | H24: =IF(G24>0,G24*1000/$G$21,"-") -> 708.3391949
A25: Power Exported | C25: 61241.0783 | D25: 50398.3777 | E25: 68915.1892 | F25: 68354.804 | G25: =SUM(C25:F25) -> 248909.4492 | H25: =IF(G25>0,G25*1000/$G$21,"-") -> 637.9768653
A26: Power Used on site | C26: 6773.109286 | D26: 5888.375002 | E26: 7957.443345 | F26: 7513.512682 | G26: =SUM(C26:F26) -> 28132.44031 | H26: =IF(G26>0,G26*1000/$G$21,"-") -> 72.10592504
A27: Power Imported | C27: 31.39536 | D27: 454.97132 | E27: 168.82324 | F27: 25.08144 | G27: 680.27136 | H27: =IF(G27>0,G27*1000/$G$21,"-") -> 1.743595477
A28: Parasitic Load | B28: % | C28: =IF(C24>0,1-C25/(C24+C27),"-") -> 0.09958377107 | D28: =IF(D24>0,1-D25/(D24+D27),"-") -> 0.1046138695 | E28: =IF(E24>0,1-E25/(E24+E27),"-") -> 0.103514646 | F28: =IF(F24>0,1-F25/(F24+F27),"-") -> 0.09903360204 | G28: =IF(G24>0,1-G25/(G24+G27),"-") -> 0.1015458
A29: Thermal Energy Produced *** | B29: MWh | G29: =SUM(C29:F29) -> 0 | H29: =IF(G29>0,G29*1000/$G$21,"-") -> -
A30: Thermal Energy Exported *** | G30: 0 | H30: =IF(G30>0,G30*1000/$G$21,"-") -> -
A31: R1 value (if applicable) | B31: R1
A33: Waste Disposal & Recovery | B33: Unit | C33: Q1 | D33: Q2 | E33: Q3 | F33: Q4 | G33: Year Total | H33: % inputs
A34: APC Residues - produced | B34: tonnes | C34: 2173.4 | D34: 1931.46 | E34: 2539.12 | F34: 2410.02 | G34: =SUM(C34:F34) -> 9054 | H34: =IF(G34>0,G34/$G$21,"-") -> 0.02320620032
A35: IBA - produced | C35: 21487 | D35: 12944 | E35: 6497 | F35: 26482 | G35: 67410 | H35: =IF(G35>0,G35/$G$21,"-") -> 0.1727777737
A36: Metals recycling | C36: 2888 | D36: 2962 | E36: 2637 | F36: 2719 | G36: =SUM(C36:F36) -> 11206 | H36: 0.02872196606
A37: Other | C37: 0 | D37: 0 | E37: 0 | F37: 0 | G37: =SUM(C37:F37) -> 0 | H37: -
A38: Other | C38: 0 | D38: 0 | E38: 0 | F38: 0 | G38: 0 | H38: -
A39: Other | C39: 0 | D39: 0 | E39: 0 | F39: 0 | G39: 0 | H39: -
A41: Raw Material Usage | B41: Unit | C41: Q1 | D41: Q2 | E41: Q3 | F41: Q4 | G41: Year Total | H41: kg or Ltr /te
A42: Mains Water | B42: ltrs | C42: 16160000 | D42: 11950000 | E42: 13689000 | F42: 13747000 | G42: =SUM(C42:F42) -> 55546000 | H42: =IF(G42>0,G42/$G$21,"-") -> 142.3692956
A43: Other Water | B43: ltrs | C43: 0 | D43: 0 | E43: 0 | F43: 0 | G43: 0 | H43: =IF(G43>0,G43/$G$21,"-") -> -
A44: Ammonia | B44: kgs | C44: 233878.4944 | D44: 215057.5505 | E44: 239430.5648 | F44: 200454.4448 | G44: 888821.0546 | H44: 2.278126733
A45: Urea | B45: kgs | G45: =SUM(C45:F45) -> 0 | H45: -
A46: Activated Carbon | B46: kgs | C46: 15322 | D46: 13034 | E46: 18571 | F46: 19224 | G46: 66151 | H46: 0.1695508457
A47: Lime / hydrated lime | B47: kgs | C47: 747208 | D47: 604597 | E47: 902538 | F47: 824988 | G47: 3079331 | H47: 7.892596866
A48: Fuel oil | B48: ltrs | C48: 236112 | D48: 152776 | E48: 245723 | F48: 332875 | G48: 967486 | H48: 2.479751924
A49: Gas | B49: cuf | G49: 0
A50: Other | G50: 0
A52: Summary | B52: Line/Unit | C52: Q1 | D52: Q2 | E52: Q3 | F52: Q4 | G52: Year Total | I52: Hrs in year
A53: Availability of waste combustion by line, hrs **** | B53: 1 | C53: 1977.33 | D53: 1441.59 | E53: 2113 | F53: 2109.32 | G53: =SUM(C53:F53) -> 7641.24 | H53: =+G53/$I$53 -> 0.8699043716 | I53: 8784
B54: 2 | C54: 1964.09 | D54: 1500.25 | E54: 2044.83 | F54: 2013.01 | G54: 7522.18 | H54: =+G54/$I$53 -> 0.8563501821
B55: 3 | C55: 0 | D55: 0 | E55: 0 | F55: 0 | G55: 0 | H55: 0
B56: 4 | C56: 0 | D56: 0 | E56: 0 | F56: 0 | G56: 0 | H56: 0
B57: 5 | C57: 0 | D57: 0 | E57: 0 | F57: 0 | G57: =SUM(C57:F57) -> 0 | H57: 0
A58: Overall Availability, mean avg. of all lines, hrs | C58: =AVERAGE(C53:C54) -> 1970.71 | D58: =AVERAGE(D53:D54) -> 1470.92 | E58: 2078.915 | F58: 2061.165 | G58: =AVERAGE(G53:G54) -> 7581.71 | H58: 0.8631272769
A59: Hours of turbine operations, hrs | B59: 1 | C59: 2164.42 | D59: 1501.83 | E59: 2127.59 | F59: 2196.92 | G59: 7990.76 | H59: 0.9096948998
A60: Hours of turbine operations, hrs | B60: 2 | C60: 0 | D60: 0 | E60: 0 | F60: 0 | G60: 0 | H60: 0
A61: Hours of heat / steam export | C61: 0 | D61: 0 | E61: 0 | F61: 0 | G61: 0 | H61: =IF(B61>0,G60/I53,"n/a") -> n/a
A62: Net Calorific Value of waste | B62: MJ/kg | C62: 8.791716208 | D62: 9.042878576 | E62: 9.27236036 | F62: 9.012319217 | G62: 9.091809893
A63: Abnormal Events | B63: qty. | C63: 2 | D63: 0 | E63: 0 | F63: 0 | G63: 2 | H63: =IF(G63>0,"yes","no") -> yes
A64: Abnormal operation | B64: hours | C64: 4.5 | D64: 0 | E64: 0 | F64: 0 | G64: 4.5 | H64: =+(G64)/I53 -> 0.000512295082
A65: Permit Breaches | B65: qty. | C65: 6 | D65: 0 | E65: 2 | F65: 0 | G65: 8 | H65: =IF(G65>0,"yes","no") -> yes

Sheet Operational Summary
A1: =+'Cover Page'!$B$29 -> Annual Performance Report 2024 | H1: =+'Cover Page'!$B$33 -> Severnside Energy Recovery Centre
A3: Summary of Plant Operations and Maintenance during the reporting year | N3: Notes:
A5: During the year the Plant received 391,220.63 tonnes of waste. Line 1 was in operation for 7,641 Hours with a throughput of 194,900 tonnes and Line 2 was in operation for 7,522 hours with a throughput of 191,318 tonnes. The maximum possible operational hours for the year being 8,784 hrs. The steam turbine generator (STG) was in operation for 7,990 hours producing a gross electrical output of 276,361 MWh. The plant had it annual outage with the year which is the routine maintenance of the plant, also during the year the plant was suffering with process Blockages this was mainly due to oversize material within the feedstock. | N5: Include summary of key operational and/or maintenance activity undertaken in the year, such as any major component upgrades and/or replacements
A29: Summary of Residue Handling for the reporting year
A31: All IBA produced by the EfW plant is transferred to the IBA recycling plant by conveyor, the IBA recycling plant is operated by Blue Phoenix. The IBA is non-hazardous, as confirmed by two weekly analysis of the IBA in accordance with the Environment Agency's WM3 waste classification guidance, and undergoes a mechanical separation process to remove all ferrous and non-ferrous metals leaving an IBA aggregate product. The metals are transferred to other operators for recycling and the IBA is applied to land in construction activities as a replacement for virgin (quarried) aggregate. This is in accordance with Environment Agency Regulatory Position Statement (RPS) 247 "Using unbound IBAA in construction activities". Air Pollution Control (APC) residues is the fly ash from the boiler mixed with dry sorbents such as carbon and lime in the flu gas treatment plant. The APC residue is hazardous and is therefore collected and further treated with waste acids and other industrials wastes to produce a filter cake. The filter cake is lime rich and can be applied to land for acidic soil remediation, such as colliery spoil sites, ensuring that recovery of process residues is greater than 99%. Some additional residues may be produced during cleaning of the boiler during cleaning activities in planned maintenance outages. This boiler ash, often mixed with grit blast residues from the cleaning process, is disposed of to landfill. | N31: Include in here a summary of residue handling regimes and destinations
A54: =+'Cover Page'!C39 -> 2024 | E54: Plant shut-downs
A55: Start Date | B55: End Date | C55: Line | D55: Duration | E55: Reason for shut-down | N55: Provide a very brief reason for plant shut-down e.g. "Shut-down prior to major outage"; "Emergency shut-down due to boiler tube leak" There is no need to include periods of hot-standby here (e.g. to clear feed chute hopper blockages). For clinical waste incinerators which require regular shut-downs for boiler cleaning, there is no need to record these here.
A56: 2024-01-05 | B56: 2024-01-05 | C56: Line 2 | D56: 19.08 | E56: Bottom Ash Drop-off Chute Blockage (North)
A57: 2024-01-19 | B57: 2024-01-20 | C57: Line 1 | D57: 16.25 | E57: Bottom Ash Drop-off Chute Blockage (South)
A58: 2024-01-22 | B58: 2024-01-26 | C58: Line 1 | D58: 105.75 | E58: Baghouse Filter Cleaning Service (Planned)
A59: 2024-01-26 | B59: 2024-01-28 | C59: Line 1 | D59: 45.25 | E59: Loss of Baghouse Filter
A60: 2024-01-27 | B60: 2024-01-28 | C60: Line 2 | D60: 15.66 | E60: Bottom Ash Drop-off Chute Blockage (North)
A61: 2024-02-05 | B61: 2024-02-10 | C61: Line 2 | D61: 135.75 | E61: Baghouse Filter Replacement (Planned)
A62: 2024-02-11 | B62: 2024-02-12 | C62: Line 2 | D62: 18.83 | E62: Loss of Baghouse Filter
A63: 2024-02-23 | B63: 2024-02-23 | C63: Line 1 | D63: 15.17 | E63: Bottom Ash Drop-off Chute Blockage (South)
A64: 2024-03-09 | B64: 2024-03-11 | C64: Line 2 | D64: 30.59 | E64: Bottom Ash Drop-off Chute Blockage (South)
A65: 2024-03-20 | B65: 2024-03-21 | C65: Line 1 | D65: 24.25 | E65: Bottom Ash Drop-off Chute Blockage (South)
A66: 2024-04-04 | B66: 2024-04-04 | C66: Line 2 | D66: 1.08 | E66: Ram Feeder Table Blockage
A67: 2024-04-25 | B67: 2024-04-25 | C67: Line 1 | D67: 7.5 | E67: Bottom Ash Extractor Chain Conveyor Failure
A68: 2024-05-02 | B68: 2024-05-03 | C68: Line 1 | D68: 20.5 | E68: Bottom Ash Drop-off Chute Blockage (North)
A69: 2024-05-22 | B69: 2024-05-22 | C69: Line 1 | D69: 5.5 | E69: External Grid Network Fault
A70: 2024-05-30 | B70: 2024-05-30 | C70: Line 2 | D70: 13.42 | E70: Bottom Ash Drop-off Chute Blockage (South)
A71: 2024-06-01 | B71: 2024-06-30 | C71: Line 1 | D71: 708.91 | E71: Planned Annual Maintenance Outage
A72: 2024-06-03 | B72: 2024-07-06 | C72: Line 2 | D72: 792.67 | E72: Planned Annual Maintenance Outage
A73: 2024-07-21 | B73: 2024-07-21 | C73: Line 1 | D73: 17.58 | E73: Bottom Ash Drop-off Chute Blockage (North)
A74: 2024-08-22 | B74: 2024-08-23 | C74: Line 2 | D74: 39.75 | E74: Bottom Ash Drop-off Chute Blockage (North) and External Grid Network Fault
A75: 2024-08-23 | B75: 2024-08-23 | C75: Line 1 | D75: 1 | E75: External Grid Network Fault
A76: 2024-09-03 | B76: 2024-09-06 | C76: Line 1 | D76: 76.42 | E76: Bottom Ash Drop-off Chute Blockage and Burner FMS Fault
A77: 2024-10-04 | B77: 2024-10-06 | C77: Line 1 | D77: 32.17 | E77: Bottom Ash Extractor Chain Conveyor Failure
A78: 2024-10-08 | B78: 2024-10-08 | C78: Line 1 | D78: 8.92 | E78: Bottom Ash Drop-off Chute Blockage (North)
A79: 2024-10-08 | B79: 2024-10-09 | C79: Line 2 | D79: 22.83 | E79: Bottom Ash Drop-off Chute Blockage (North)
A80: 2024-10-19 | B80: 2024-10-19 | C80: Line 1 | D80: 12.92 | E80: Bottom Ash Drop-off Chute Blockage (North & South)
A81: 2024-10-25 | B81: 2024-10-26 | C81: Line 2 | D81: 19.08 | E81: Bottom Ash Drop-off Chute Blockage (South)
A82: 2024-10-27 | B82: 2024-10-27 | C82: Line 1 | D82: 12.83 | E82: Bottom Ash Extractor Chain Conveyor Failure
A83: 2024-11-01 | B83: 2024-11-02 | C83: Line 1 | D83: 10.75 | E83: Bottom Ash Drop-off Chute Blockage (North)
A84: 2024-11-08 | B84: 2024-11-09 | C84: Line 2 | D84: 47.42 | E84: Waste Feed Hopper Blockage
A85: 2024-11-10 | B85: 2024-11-13 | C85: Line 2 | D85: 69.75 | E85: Dust Probe Issues and Baghouse Filter Failure
A86: 2024-11-29 | B86: 2024-11-30 | C86: Line 1 | D86: 21.09 | E86: Bottom Ash Extractor Chain Conveyor Failure
A87: 2024-12-17 | B87: 2024-12-19 | C87: Line 2 | D87: 35.91 | E87: Bottom Ash Drop-off Chute Blockage (North & South)

Sheet Perf. Form 1
A1: =+'Cover Page'!C39 -> 2024 | B1: Annual Reporting Performance Form 1
A3: =+'Cover Page'!B31 -> Permit EPR/ZP3937KL | F3: Operator: | G3: =+'Cover Page'!B37 -> SUEZ Recycling and Recovery UK Ltd
A4: Facility: | B4: =+'Cover Page'!B33:I33 -> Severnside Energy Recovery Centre | F4: Form: | G4: Performance 1
A6: Reporting Period from: | D6: 2024-01-01 | F6: to: | G6: 2024-12-31
A8: =+A1 -> 2024 | B8: Annual Reporting of Waste Disposal and Recovery
A9: Waste Description | C9: Disposal Route(s) | E9: Disposal Tonnes | G9: Recovery Tonnes | I9: % / tonne of waste incinerated
A10: 1) Hazardous Wastes
A11: APC Residues | C11: D09/R05 | E11: 218.54 | G11: 8835.46 | I11: =IF((E11+G11)>0,(E11+G11)/'Operational Data'!$G$21, "-") -> 0.02320620032
A12: IBA | I12: =IF((E12+G12)>0,(E12+G12)/'Operational Data'!$G$21, "-") -> -
I13: =IF((E13+G13)>0,(E13+G13)/'Operational Data'!$G$21, "-") -> -
I14: =IF((E14+G14)>0,(E14+G14)/'Operational Data'!$G$21, "-") -> -
A15: Total Hazardous Waste | E15: =SUM(E11:F14) -> 218.54 | G15: =SUM(G11:H14) -> 8835.46 | I15: =IF((E15+G15)>0,(E15+G15)/'Operational Data'!$G$21, "-") -> 0.02320620032
A17: 2) Non-Hazardous Wastes
A18: IBA | C18: R10 | G18: 67410 | I18: =IF((E18+G18)>0,(E18+G18)/'Operational Data'!$G$21, "-") -> 0.1727777737
A19: Ferrous Metal | C19: R04 | G19: 6189 | I19: =IF((E19+G19)>0,(E19+G19)/'Operational Data'!$G$21, "-") -> 0.0158629527
A20: Process Water | C20: D09 | E20: 257 | I20: =IF((E20+G20)>0,(E20+G20)/'Operational Data'!$G$21, "-") -> 0.0006587136604
A21: Non-ferrous metal | C21: R04 | G21: 5017 | I21: =IF((E21+G21)>0,(E21+G21)/'Operational Data'!$G$21, "-") -> 0.01285901336
I22: =IF((E22+G22)>0,(E22+G22)/'Operational Data'!$G$21, "-") -> -
A23: Total Non-Hazardous Waste | E23: =SUM(E18:F22) -> 257 | G23: =SUM(G18:H22) -> 78616 | I23: =IF((E23+G23)>0,(E23+G23)/'Operational Data'!$G$21, "-") -> 0.2021584534
A24: TOTAL WASTE | E24: =+E23+E15 -> 475.54 | G24: =+G23+G15 -> 87451.46 | I24: =IF((E24+G24)>0,(E24+G24)/'Operational Data'!$G$21, "-") -> 0.2253646538
A26: Operator’s comments :
A31: =+A1 -> 2024 | B31: Annual Reporting of Water and Other Raw Material Usage
A32: Raw Material | E32: Usage | G32: Unit | H32: Specific Usage | J32: Unit
A33: Mains Water | E33: =+'Operational Data'!G42/1000 -> 55546 | G33: m3 | H33: =IF(E33>0,E33/'Operational Data'!$G$21,"-") -> 0.1423692956 | J33: m3/te
A34: Total Water | E34: =+'Operational Data'!G43+'Operational Data'!G42/1000 -> 55546 | G34: m3 | H34: =IF(E34>0,E34/'Operational Data'!$G$21,"-") -> 0.1423692956 | J34: m3/te
A35: Urea / Ammonia | E35: =+'Operational Data'!G44 -> 888821.0546 | G35: kg | H35: =IF(E35>0,E35/'Operational Data'!$G$21,"-") -> 2.278126733 | J35: kg/te
A36: Activated Carbon | E36: =+'Operational Data'!G46 -> 66151 | G36: kg | H36: =IF(E36>0,E36/'Operational Data'!$G$21,"-") -> 0.1695508457 | J36: kg/te
A37: Lime / hydrated lime / Sodium Bicarb. | E37: =+'Operational Data'!G47 -> 3079331 | G37: kg | H37: =IF(E37>0,E37/'Operational Data'!$G$21,"-") -> 7.892596866 | J37: kg/te
A39: Operator’s comments :
A43: =+A31 -> 2024 | B43: Annual Reporting of other performance indicators
A44: Parameter | C44: Results by Line
C45: A1 | D45: A2 | E45: A3 | F45: A4 | G45: A5 | I45: Turbine 1 | J45: Turbine 2
A46: Operating hours for the year, hours | C46: ='Operational Data'!G53 -> 7641.24 | D46: ='Operational Data'!G54 -> 7522.18 | I46: ='Operational Data'!G59 -> 7990.76
A47: Number of periods of abnormal operation, qty. | C47: 1 | D47: 1
A48: Cumulative hours of abnormal operation for this year, hours | C48: 2.5 | D48: 2
A50: Operator’s comments :
A54: Signed: | B54: Richard Watkins | G54: Date: | H54: 2025-01-27

Sheet Energy Form 1
A1: =+'Cover Page'!C39 -> 2024 | B1: Annual Reporting of Energy Usage/Export
A3: =+'Cover Page'!B31 -> Permit EPR/ZP3937KL | F3: Operator: | G3: =+'Cover Page'!B37 -> SUEZ Recycling and Recovery UK Ltd
A5: Facility: | B5: =+'Cover Page'!B33:I33 -> Severnside Energy Recovery Centre | F5: Form: | G5: Energy 1
A7: Reporting Period from: | D7: 2024-01-01 | F7: to: | G7: 2024-12-31
A9: Energy Source | D9: Energy Usage | F9: Unit | G9: Specific Usage (KWh/tonne incinerated
A10: Electricity Produced | D10: =+'Operational Data'!G24 -> 276361.6182 | F10: MWh | G10: =+'Operational Data'!H24 -> 708.3391949
A11: Electricity Imported | D11: =+'Operational Data'!G27 -> 680.27136 | F11: MWh | G11: =+'Operational Data'!H27 -> 1.743595477
A12: Electricity Exported | D12: =+'Operational Data'!G25 -> 248909.4492 | F12: MWh | G12: =+'Operational Data'!H25 -> 637.9768653
A13: Gas Oil | D13: =('Operational Data'!G48*(10^-6))*845 -> 817.52567 | F13: tonnes | G13: =(D13*42800*1000*(1/3600))/'Operational Data'!G21 -> 24.91186335
A14: Steam/hot water exported | D14: =+'Operational Data'!G30 -> 0 | F14: GWh | G14: =+'Operational Data'!H30 -> -
A18: Operator’s comments :
A19: Density value of 845 kg.m-3 used to convert gas oil litres to tonnes. Net Calorific Value (NCV) of 42,800 kJ.kg-1 used for gas oil
A29: Signed: | B29: Richard Watkins | G29: Date: | H29: 2024-01-27

Sheet Permit Compliance
A1: =+'Cover Page'!$B$29 -> Annual Performance Report 2024 | E1: =+'Cover Page'!$B$33 -> Severnside Energy Recovery Centre
A3: Summary of Permit Compliance
A5: Compliance with permit limits for continuously monitored pollutants
A7: The plant met its emission limits as shown in the table below:
A8: Substance | C8: Percentage time compliant during operationNote 1 | L8: Notes:
C9: Half-hourly limit | F9: Daily limit | L9: Note 1: Please report to 2 decimal places, i.e. xx.xx% Note 2: Please enter into this table any permit non-compliances that the EA has given a CCS score for. Please also enter any other non-compliances which you have notified to the EA (e.g. ELV exceedances) but which have not yet been assessed by the EA. There is no need to enter any notifications which were subsequently assessed by the EA not to be permit breaches. Note 3: Please enter information here (rather than just referencing the notifications that were sent to the EA) including where relevant the incineration line reference, pollutant and value of the measured result for any ELV exceedances.
A10: Particulates | C10: 0.9998 | F10: 1
A11: Oxides of nitrogen | C11: 1 | F11: 1
A12: Sulphur dioxide | C12: 0.9999 | F12: 1
A13: Carbon monoxide | C13: 100.00 % or 100.00% 95% of 10-min averages | F13: 1
A14: Total organic carbon | C14: 1 | F14: 1
A15: Hydrogen chloride | C15: 1 | F15: 1
A16: Hydrogen fluoride | C16: 1 | F16: 1
C17: 1 | F17: 1
A19: Summary of non-compliances under the permit Note 2
A20: Date | B20: Summary of non-compliance Note 3 | D20: Reason | G20: Measures taken to prevent reoccurrence | H20: CCS score if applicable*
H21: Impact | I21: Root cause
A22: 2024-01-26 | B22: Breach - Elevated dust emissions on L1 during 2.5 hour period of Abnormal Operation. (2 x 1/2 hourly averages above limit) | D22: Bag filter failure after plant startup. | G22: Bag filters replaced and chamber cleaned. | H22: CCS3 | I22: N/A
A23: 2024-02-11 | B23: Breach - Elevated dust emissions on L2 during 2 hour period of Abnormal Operation. (4 x 1/2 hourly averages above limit) | D23: Loss of fabric filter in chamber 3 and damaged bag filter in chamber 5. | G23: Missing bag filter replaced, chamber cleaned and other bag filters replaced.
A24: 2024-07-18 | B24: Breach - SO2 exceedance on L2. | D24: Issue thought to be waste related with limited mixing in waste bunker, due to electrical issues with crane 1 (waiting for spare parts). | G24: Improving control over waste quality. Standardisation of waste bunker mixing regimes.
A25: 2024-09-16 | B25: Breach - Dioxins exceedance on L1. | D25: Following investigations, it is concluded that this result is likely to be erroneous data. | G25: Erroneous result. No operational issues identified and 2 retests both compliant.
A26: *If the Environment Agency (EA) has given a Compliance Classification Scheme (CCS) score due to a permit non-compliance it should be entered here (CCS4 = No impact; CCS3 = Minor impact; CCS2 = Significant impact; CCS1 = Major impact). If the EA has not yet assessed a non-compliance which you have notified to them, these columns should be left blank.
A28: Summary of any complaints received and actions to taken to resolve them.
A29: Date | B29: Summary of complaint [including Line/Reference] | E29: Reason (including whether substantiated by the operator or the EA) | H29: Measures taken to prevent reoccurrence
A30: 2024-03-05 | B30: Noise complaint - Severn Beach, increase in noise levels | E30: Not substantiated | H30: Unsubstantiated claim.
A31: 2024-03-30 | B31: Noise complaint - 1 mile from site, mechanical whirring noise, caller thinks this is coming from the turbines on the back on the building | E31: Not substantiated | H31: EA Carried out site inspection and were not able to attribute noise to SERC.

Sheet Improvements
A1: =+'Cover Page'!$B$29 -> Annual Performance Report 2024 | E1: =+'Cover Page'!$B$33 -> Severnside Energy Recovery Centre
A3: Summary of Plant Improvements
A5: Summary of any efficiency improvements that have been completed within the year.
A6: Replacement / upgrade of expansion joints on both lines during June 2024 outage (including reactor-BHF raw gas duct and ID fan discharge) to reduce excessive air ingress and hence the overall flue gas volume and ID fan power consumption.
A16: Summary of any permit improvement conditions that have been completed within the year and the resulting environmental benefits.
A17: BREF Improvement Condition 1 - NOx Reduction Trials undertaken in Q1 2024 and final report submitted in May 2024. The Dust Management Plan required by Improvement Condition 4 was submitted during November 2024.
A27: Summary of any changes to the plant or operating techniques which required a variation to the permit and a summary of the resulting environmental impact.
A28: None required.
A38: Summary of any other improvements made to the plant or planned to be made and a summary of the resulting environmental benefits.
A39: Comprehensive works carried out on BHF chamber isolation dampers on Line 1 in June 2024 to increase ability in being able to successfully isolate a chamber whilst online and carrying out the replacement of any failed filters, avoiding exceedances of the TPM ELVs. This scope of works is also planned on Line 2 in June 2025. Instrumentation installed on Line 2 in June 2024 (after successful trials on Line 1 in 2023) as part of an online dust monitoring system with a sensor installed around each BHF chamber, to allow for more accurate monitoring and quicker identification of any failed filters between the compartments, helping to reduce likelihood of exceedances of the TPM ELV. Implementation of a biogenic carbon monitoring system (Envea AMESA-B system) to be installed during Q1 2025 for more accurate reporting of biogenic CO2 emissions over periodic testing of waste.

Sheet Public Liasion
A1: =+'Cover Page'!$B$29 -> Annual Performance Report 2024 | E1: =+'Cover Page'!$B$33 -> Severnside Energy Recovery Centre
A3: Details of Public & Stakeholder Liaison
A5: Summary of events held during the reporting year.
A6: Date | C6: Description
A16: List of events planned for next year
A17: Date | C17: Description
A29: If you wish to be involved in the public liaison programme, please contact _________________

Sheet CO2 N2O
A1: =+'Cover Page'!$B$29 -> Annual Performance Report 2024 | C1: =+'Cover Page'!$B$33 -> Severnside Energy Recovery Centre
A3: Carbon dioxide emissions and biogenic content of waste inputs | F3: Notes:
A5: Carbon dioxide emissions (all types of plant)
B6: Annual mass of carbon dioxide released | C6: tonnes | D6: 358254.22
B7: Annual mass of carbon dioxide released per tonne of waste burned | C7: t CO2 / t waste | D7: 0.928
B8: Annual mass of carbon dioxide released per MWh of energy exported | C8: t CO2 / MWh export | D8: 1.439
B9: Description of how annual carbon dioxide mass emission has been calculated. See Note 1 | C9: Calculated using the monthly average CEMS CO2 volume, Stack Flowrate and Operating Hours for each line. | F9: Note 1: All permits require operators to continuously monitor CO2 to EN14181 and flow to BS EN 16911-2 (unless otherwise agreed in writing). Operators must therefore use the results from these instruments to calculate their annual CO2 emissions. Where an operator does not have a flow meter calibrated to BS EN 16911-2, the averaged flow measurement from that year's periodic monitoring can be used instead. If the plant does not have calibrated CO2 CEMS, a suitably justified emissions factor can be used.
A10: Nitrous oxide emissions (only plants which use ammonia or urea to abate NOx emissions)
B11: Annual mass emissions of nitrous oxide | C11: tonnes N2O | D11: 0.6581
B12: Description of how annual nitrous oxide mass emission has been calculated See Note 2 | C12: Calculated using the monthly average CEMS N2O concentration, Stack Flowrate and Operating Hours for each line. | F12: Note 2: All permits require operators to continuously monitor N2O to EN14181 and flow to BS EN 16911-2, unless otherwise agreed in writing. Operators must therefore use the results from these instruments to calculate their annual N2O emissions. Where an operator does not have a flow meter calibrated to BS EN 16911-2, the averaged flow measurement from periodic monitoring can be used instead. If the plant does not have calibrated N2O CEMS, data from periodic monitoring or a suitably justified emissions factor can be used instead.
A13: Total annual carbon dioxide + nitrous oxide emissions. See Note 3. | C13: tonnes CO2e | D13: 358428.62 | F13: Note 3: Total annual carbon dioxide and nitrous oxide emissions reported as carbon dioxide equivalent where 1 tonne nitrous oxide is equivalent to 265 tonnes carbon dioxide.
A14: Biogenic CO2 emissions (See Note 4) | F14: Note 4: Only plants combusting residual municipal waste, refuse derived fuel or solid recovered fuel need complete this section.
B15: Percentage of total carbon dioxide emissions arising from biogenic waste | C15: % | D15: 0.5575
B16: No. of measurements undertaken | C16: Number | D16: 1
B17: Description of how percentage biogenic carbon dioxide emissions have been measured or calculated. See Note 5 | C17: Calculated from the annual waste analysis, biogenic fraction for each waste type taken from DEFRA 2014 energy recovery for residual waste, a carbon based modelling approach. | F17: Note 5: The results from C14 sampling should be used if this is carried out at the plant (either via an installed sampler or from spot samples). Otherwise, as an approximation (and in lieu of any more accurate metrics which may be developed in future), the measured or estimated biogenic fraction by net calorific value (see Note 6) can be assumed to be the same as the biogenic CO2 fraction of the total CO2 emissions from the plant.
A18: Biogenic fraction of waste feedstock (See Note 4)
B19: Yearly average biogenic percentage of the waste by net calorific value (NCV) | C19: % | D19: 0.482
B20: Description of how biogenic percentage (by NCV) has been calculated or estimated. See Note 6 | C20: See above for biogenic CO2 emissions calculation. | F20: Note 6: If C14 sampling is carried out at the plant, the methodology set out in the embedded document entitled "Renewable Energy Association Energy Content of Fuels - Description of Method" embedded below can be used to calculate the biogenic percentage by net calorific value. Otherwise, data from waste sampling or BIOMA software can be used; or if none of these are available, an estimated figure with justification or a figure assumed on the basis of up-to-date industry data can be used.
B21: Yearly average biogenic percentage of the waste by mass | C21: % | D21: 0.5575
B22: If waste sampling undertaken, no. of samples used to ascertain average biogenic percentages above | C22: Number | D22: 1
B23: Description of how biogenic percentage (by mass) has been calculated or estimated. See Note 7 | C23: See above for biogenic CO2 emissions calculation. | F23: Note 7: Where available, data from waste sampling should be used; otherwise, an estimated figure with justification can be used, or a figure assumed on the basis of up-to-date industry data.
B25: Comments:

Sheet Residue Quality
A1: =+'Cover Page'!$B$29 -> Annual Performance Report 2024 | E1: =+'Cover Page'!$B$33 -> Severnside Energy Recovery Centre
A3: Residue Quality Monitoring Requirements
A5: Summary of monitoring undertaken and compliance
A6: The samples for the quarterly IBA analysis were undertaken on 18/01/2024, 10/04/2024, 01/08/2024 and 24/10/2024.
A8: There were no issues identified by the analysis and all results for TOC were below the permit limit. LOI analysis is not required as TOC analysis is provided.
A13: Commentary on any specific events
A14: Date & Event | C14: Description
A27: Residue Quality Monitoring Results
A28: Parameter (unit) | C28: Limit* | D28: Normal Operation
D29: Bottom ash | F29: APC Residues
A30: Loss on Ignition (average %) | C30: <5% | D30: N/A
A31: Total Organic Carbon (average %) | C31: <3% | D31: =AVERAGE(1.06, 1.28, 0.388, 0.329) -> 0.76425
A32: No. of Assessments Undertaken | C32: --- | D32: 4 | F32: 4
A33: No. of Hazardous Results | C33: --- | D33: 0
A34: * The permit will specify a limit of either 5% loss on ignition or 3% total organic carbon. If both are measured anyway, please enter the results here, even where the limit does not apply.
A36: Comments :
A37: 18/01/2024 IBA Sample - TOC = 1.06 10/04/2024 IBA Sample - TOC = 1.28 01/08/2024 IBA Sample - TOC = 0.388 24/10/2024 IBA Sample - TOC = 0.329 Average = 0.76%

Sheet Water
A1: =+'Cover Page'!$B$29 -> Annual Performance Report 2024 | E1: =+'Cover Page'!$B$33 -> Severnside Energy Recovery Centre
A3: Emissions to Water
A5: Summary of monitoring undertaken and compliance
A6: W1 is the emission point from the Surface Water Management System to the Red Rhine via the swale. No discharge was observed from this emission point during the reporting period.
A8: W2 is the emission point from the railhead drainage system to the Red Rhine. Discharge was only observed from this point on 3 occasions; 11/06/2024, 23/09/2024 & 30/09/2024.
A10: W3 is the emission point for overflow from the clean rainwater and firewater tanks to the Red Rhine. Discharge was sampled on the 23/09/2024 but no monitoring requirements or emission limits apply.
A13: Commentary on any specific events
A14: Date & Event | C14: Description
A15: 2024-06-11 | C15: W2 rail drainage discharge to Red Rhine observed and sample taken
A17: 2024-09-23 | C17: W2 rail drainage discharge and W3 clean rainwater tank and fire water tank overflow discharge to Red Rhine observed and samples taken.
A19: 2024-09-30 | C19: W2 rail drainage discharge to Red Rhine observed and sample taken
A22: Emissions to Water / Sewer
A23: Parameter | D23: Monitoring Frequency | F23: Limit | G23: Target | H23: Max. | I23: Average
A24: Suspended solids | D24: W2 monthly | F24: 30 mg/l | H24: 19 | I24: 12
A25: Oil | D25: W2 monthly | F25: 5 mg/l | H25: 0.05 | I25: 0.037
A26: Oil | D26: W2 monthly | F26: No visible oil | H26: 0 | I26: 0

Sheet Air (periodic)
A1: =+'Cover Page'!$B$29 -> Annual Performance Report 2024 | E1: =+'Cover Page'!$B$33 -> Severnside Energy Recovery Centre
A3: Emissions to Air (periodically monitored)
A5: Summary of monitoring undertaken, standards used and compliance | K5: Notes:
A6: The compliance monitoring visits were carried out during February and August 2024. A non-compliant dioxins result was identified in August 2024 on A1. | K6: Template may require adjustment for any bespoke monitoring requirements of permit - please also check that all default ELV values, reference periods and the stated oxygen reference value match those for your plant, and edit if necessary!
A9: Results of emissions to air that are periodically monitored - oxygen reference 11%
A10: Substance | C10: Ref. Period | D10: Emission Limit Value | F10: Average | K10: User to add additional tables as necessary, depending on whether quarterly or bi-annual reporting is required for the compliance year
F11: A1 | G11: A2 | H11: A3 | I11: A4 | J11: A5
A12: Hydrogen fluoride | C12: 1 hr | D12: 1 mg/m3 | F12: 0.122 | G12: =AVERAGE(0.15, 0.12) -> 0.135
A13: Cd and Tl and their compounds | C13: 0.5-8hrs | D13: 0.02 mg/m3 | F13: =AVERAGE(0.0013, 0.0015) -> 0.0014 | G13: =AVERAGE(0.0013, 0.0015) -> 0.0014
A14: Hg and its compounds | C14: 0.5-8hrs | D14: 0.02 mg/m3 | F14: =AVERAGE(0.00072, 0.0014) -> 0.00106 | G14: =AVERAGE(0.0035, 0.00028) -> 0.00189
A15: Sb, As, Pb, Cr, Co, Cu, Mn, Ni, V and their compounds | C15: 0.5-8hrs | D15: 0.3 mg/m3 | F15: =AVERAGE(0.011, 0.014) -> 0.0125 | G15: =AVERAGE(0.012, 0.0089) -> 0.01045
A16: Dioxins & Furans (I-TEQ) | C16: 6-8hrs | D16: 0.06 ng/m3 | F16: =AVERAGE(0.0014, 0.5075) -> 0.25445 | G16: =AVERAGE(0.0014, 0.007) -> 0.0042
A17: PCBs (WHO-TEQ Humans / Mammals) | C17: 6-8hrs | D17: None set ng/m3 | F17: =AVERAGE(0.0012, 0.011269) -> 0.0062345 | G17: =AVERAGE(0.00011, 0.00231) -> 0.00121
A18: PCBs (WHO-TEQ Fish) | C18: 6-8hrs | D18: None set ng/m3 | F18: =AVERAGE(0.0000066, 0.000313) -> 0.0001598 | G18: =AVERAGE(0.0000059, 0.00011) -> 5.795e-05
A19: PCBs (WHO-TEQ Birds) | C19: 6-8hrs | D19: None set ng/m3 | F19: =AVERAGE(0.00069, 0.008782) -> 0.004736 | G19: =AVERAGE(0.0006, 0.00415) -> 0.002375
A20: Dioxins & Furans (WHO-TEQ Humans / Mammals) | C20: 6-8hrs | D20: None set ng/m3 | F20: =AVERAGE(0.0013, 0.5036) -> 0.25245 | G20: =AVERAGE(0.0013, 0.0062) -> 0.00375
A21: Dioxins & Furans (WHO-TEQ Fish) | C21: 6-8hrs | D21: None set ng/m3 | F21: =AVERAGE(0.0014, 0.4666) -> 0.234 | G21: =AVERAGE(0.0013, 0.0074) -> 0.00435
A22: Dioxins & Furans (WHO-TEQ Birds) | C22: 6-8hrs | D22: None set ng/m3 | F22: =AVERAGE(0.0037, 0.4936) -> 0.24865 | G22: =AVERAGE(0.0038, 0.0144) -> 0.0091
A23: Anthanthrene | C23: 6-8hrs | D23: None set µg/m3 | F23: 0.0014 | G23: 0.0013
A24: Benzo(a)anthracene | C24: 6-8hrs | D24: None set µg/m3 | F24: 0.0022 | G24: 0.0019
A25: Benzo(a)pyrene | C25: 6-8hrs | D25: None set µg/m3 | F25: 0.0014 | G25: 0.0013
A26: Benzo(b)fluoranthene | C26: 6-8hrs | D26: None set µg/m3 | F26: 0.0029 | G26: 0.0013
A27: Benzo(b)naptho(2,1-d) thiophene | C27: 6-8hrs | D27: None set µg/m3 | F27: 0.0018 | G27: 0.0026
A28: Benzo(c)phenanthrene | C28: 6-8hrs | D28: None set µg/m3 | F28: 0.0019 | G28: 0.0023
A29: Benzo(ghi)perylene | C29: 6-8hrs | D29: None set µg/m3 | F29: 0.0018 | G29: 0.0013
A30: Benzo(k)fluoranthene | C30: 6-8hrs | D30: None set µg/m3 | F30: 0.0014 | G30: 0.0013
A31: Cholanthrene | C31: 6-8hrs | D31: None set µg/m3 | F31: 0.0014 | G31: 0.0013
A32: Chrysene | C32: 6-8hrs | D32: None set µg/m3 | F32: 0.0048 | G32: 0.0036
A33: Cyclopenta(cd)pyrene | C33: 6-8hrs | D33: None set µg/m3 | F33: 0.0014 | G33: 0.0013
A34: Dibenzo(ai)pyrene | C34: 6-8hrs | D34: None set µg/m3 | F34: 0.0014 | G34: 0.0013
A35: Dibenzo(ah)anthracene | C35: 6-8hrs | D35: None set µg/m3 | F35: 0.0014 | G35: 0.0013
A36: Fluoranthene | C36: 6-8hrs | D36: None set µg/m3 | F36: 0.3608 | G36: 0.3858
A37: Indeno(123-cd) pyrene | C37: 6-8hrs | D37: None set µg/m3 | F37: 0.0014 | G37: 0.0013
A38: Naphthalene | C38: 6-8hrs | D38: None set µg/m3 | F38: 0.2692 | G38: 0.2487
A39: Comments :
A40: The average result is calculated from the reported values for the H1 and H2 compliance monitoring campaigns. Where results are reported at the laboratory limit of detection the < qualifier is removed for calculation of the average emission as a conservative measure. Where the average has been calculated in this way the reported value is highlighted bold.

Sheet Air (CEMS)
A1: =+'Cover Page'!$B$29 -> Annual Performance Report 2024 | I1: =+'Cover Page'!$B$33 -> Severnside Energy Recovery Centre
A3: Emissions to Air (continuously monitored)
N4: Notes:
A5: Summary of monitoring undertaken, standards used and compliance | N5: Template may require adjustment for any bespoke monitoring requirements of permit
A6: The CEMS set up comprises a multigas analyser, FID analyser and oxygen probe for extractive sampling where flue gases are drawn continuously via a heated line to the analysers in the CEMS container for each incineration line. In situ sampling i.e. where the probes are installed directly into the flue gas flow in the stack is for the dust probes only. The set up for the duty analysers is mirrored by the standby analysers. The standby analysers can be switched between incineration Lines 1 and 2 as required. Continuous monitoring is provided by the CEMS as required by the permit. The CEMS are installed in accordance with EN14181 and relevant Environment Agency guidance. | N6: Please check that all default ELV values match those for your plant and edit if necessary!
N7: Report to 1 decimal place
A8: SERC has an additional NOx emission limit value with a monthly average limit of 150 mg/Nm3.
A11: Results of emissions to air that are continuously monitored (maximum and average values for each line) - oxygen reference 11%
A12: Substance | B12: Reference Period | C12: Emission Limit Value | D12: A1 | F12: A2 | H12: A3 | J12: A4 | L12: A5
D13: Max. | E13: Avg. | F13: Max. | G13: Avg. | H13: Max. | I13: Avg. | J13: Max. | K13: Avg. | L13: Max. | M13: Avg.
A14: Oxides of nitrogen | B14: Daily mean | C14: 180 mg/m3 | D14: =NOx!$O$19 -> 141 | E14: =NOx!$N$19 -> 134.1827273 | F14: =NOx!$O$34 -> 139 | G14: =NOx!$N$34 -> 134.2291667
B15: ½ hourly mean | C15: 400 mg/m3 | D15: =NOx!$M$19 -> 232 | E15: =NOx!$L$19 -> 134.75 | F15: =NOx!$M$34 -> 235 | G15: =NOx!$L$34 -> 134.5
A16: Particulates | B16: Daily mean | C16: 5 mg/m3 | D16: =Particulates!$O$19 -> 2.5 | E16: =Particulates!$N$19 -> 1.302727273 | F16: =Particulates!$O$34 -> 4.7 | G16: =Particulates!$N$34 -> 1.550833333
B17: ½ hourly mean | C17: 30 mg/m3 | D17: =Particulates!$M$19 -> 391.7 | E17: =Particulates!$L$19 -> 1.616666667 | F17: =Particulates!$M$34 -> 337.5 | G17: =Particulates!$L$34 -> 2.091666667
A18: Total Organic Carbon | B18: Daily mean | C18: 10 mg/m3 | D18: =TOC!$O$19 -> 2 | E18: =TOC!$N$19 -> 0.2163636364 | F18: =TOC!$O$34 -> 0.5 | G18: =TOC!$N$34 -> 0.1875
B19: ½ hourly mean | C19: 20 mg/m3 | D19: =TOC!$M$19 -> 7 | E19: =TOC!$L$19 -> 0.2083333333 | F19: =TOC!$M$34 -> 5.1 | G19: =TOC!$L$34 -> 0.2
A20: Hydrogen chloride | B20: Daily mean | C20: 8 mg/m3 | D20: =HCl!$O$19 -> 4.9 | E20: =HCl!$N$19 -> 0.9836363636 | F20: =HCl!$O$34 -> 6 | G20: =HCl!$N$34 -> 1.4075
B21: ½ hourly mean | C21: 60 mg/m3 | D21: =HCl!$M$19 -> 12.7 | E21: =HCl!$L$19 -> 0.9416666667 | F21: =HCl!$M$34 -> 15.6 | G21: =HCl!$L$34 -> 1.391666667
A22: Sulphur dioxide | B22: Daily mean | C22: 40 mg/m3 | D22: ='SO2'!$O$19 -> 21 | E22: ='SO2'!$N$19 -> 4.948181818 | F22: ='SO2'!$O$34 -> 24 | G22: ='SO2'!$N$34 -> 6.535833333
B23: ½ hourly mean | C23: 200 mg/m3 | D23: ='SO2'!$M$19 -> 152 | E23: ='SO2'!$L$19 -> 4.666666667 | F23: ='SO2'!$M$34 -> 211 | G23: ='SO2'!$L$34 -> 6.5
A24: Carbon monoxide | B24: Daily mean | C24: 50 mg/m3 | D24: ='CO 95% 10 min'!Q20 -> 6.9 | E24: ='CO 95% 10 min'!P20 -> 2.360909091 | F24: ='CO 95% 10 min'!Q35 -> 4.9 | G24: ='CO 95% 10 min'!P35 -> 1.346666667
B25: 95%ile 10-min avg | C25: 150 mg/m3 | D25: =MAX('CO 95% 10 min'!M8:M19) -> 5.45 | E25: ='CO 95% 10 min'!M20 -> 3.906666667 | F25: =MAX('CO 95% 10 min'!M23:M34) -> 4.81 | G25: ='CO 95% 10 min'!M35 -> 3.260833333
A26: Ammonia | B26: Daily mean | C26: 10 mg/m3 | D26: ='NH3'!$O$19 -> 3.9 | E26: ='NH3'!$N$19 -> 0.9872727273 | F26: ='NH3'!$O$34 -> 5.1 | G26: ='NH3'!$N$34 -> 0.8841666667
A28: Comments :

Sheet HCl
A1: =+'Cover Page'!$B$29 -> Annual Performance Report 2024 | E1: =+'Cover Page'!$B$33 -> Severnside Energy Recovery Centre
A3: Monitoring of Hydrogen Chloride emissions | D3: Whole Installation | G3: See Notes in Cell Q3 | J3: =+A3 -> Monitoring of Hydrogen Chloride emissions | N3: Per Combustion Line | Q3: Notes:
Q4: User to add logic to complete Whole installation, Table A5:G18. From the data in Per Combustion Line, Table J6:O79, subject to No. of lines installed
A5: =+'Cover Page'!C39 -> 2024 | B5: 1/2 Hourly Reference Periods | E5: Daily Reference Periods
A6: mg/Nm3 | B6: 1/2 hourly HCl ELV | C6: Monthly mean of half-hourly averages | D6: Highest half- hourly average | E6: Daily HCl ELV | F6: Monthly mean of daily averages | G6: Highest daily average | J6: =+A5 -> 2024 | K6: mg/Nm3 | L6: Monthly mean of half-hourly averages | M6: Highest half- hourly average | N6: Monthly mean of daily averages | O6: Highest daily average
A7: Jan | B7: 60 | C7: =AVERAGE(L7,L22,L37,L52,L67) -> 0.45 | D7: =MAX(M7,M22,M37,M52,M67) -> 11.8 | E7: 8 | F7: =AVERAGE(N7,N22,N37,N52,N67) -> 0.455 | G7: =MAX(O7,O22,O37,O52,O67) -> 0.9 | J7: A1 | K7: Jan | L7: 0.5 | M7: 2.8 | N7: 0.5 | O7: 0.9
A8: Feb | B8: 60 | C8: =AVERAGE(L8,L23,L38,L53,L68) -> 0.65 | D8: =MAX(M8,M23,M38,M53,M68) -> 4.2 | E8: 8 | F8: =AVERAGE(N8,N23,N38,N53,N68) -> 0.67 | G8: =MAX(O8,O23,O38,O53,O68) -> 3.2 | K8: Feb | L8: 0.7 | M8: 2.1 | N8: 0.7 | O8: 1.4
A9: Mar | B9: 60 | C9: 0.9 | D9: 4.9 | E9: 8 | F9: 0.9 | G9: 2.8 | K9: Mar | L9: 0.9 | M9: 2.7 | N9: 0.93 | O9: 1.3 | Q9: Whole Installation table A5:G18:
A10: Apr | B10: 60 | C10: 2.5 | D10: 15.6 | E10: 8 | F10: 2.52 | G10: 6 | K10: Apr | L10: 1.4 | M10: 12.7 | N10: 1.4 | O10: 3.4 | Q10: Mean: for 1/2 hourly and daily periods calculate mean of values across all operational combustion lines for the month
A11: May | B11: 60 | C11: 1.1 | D11: 7.2 | E11: 8 | F11: 1.12 | G11: 4.3 | K11: May | L11: 0.9 | M11: 5.8 | N11: 0.9 | O11: 2.2
A12: Jun | B12: 60 | C12: 0.5 | D12: 2.1 | E12: 8 | F12: 0.55 | G12: 0.6 | K12: Jun | L12: 0.5 | M12: 1.1 | N12: N/A | O12: N/A
A13: Jul | B13: 60 | C13: 0.65 | D13: 11 | E13: 8 | F13: 0.695 | G13: 1.9 | K13: Jul | L13: 0.9 | M13: 11 | N13: 0.93 | O13: 1.9 | Q13: Maximum: for 1/2 hourly and daily periods use the highest value across all operational combustion lines for the month
A14: Aug | B14: 60 | C14: 1.15 | D14: 7.9 | E14: 8 | F14: 1.095 | G14: 4.1 | K14: Aug | L14: 0.9 | M14: 4.5 | N14: 0.88 | O14: 2.2
A15: Sep | B15: 60 | C15: 1.55 | D15: 12.5 | E15: 8 | F15: 1.54 | G15: 4.5 | K15: Sep | L15: 1 | M15: 3.3 | N15: 1 | O15: 2.2
A16: Oct | B16: 60 | C16: 1.55 | D16: 8.4 | E16: 8 | F16: 1.585 | G16: 4.7 | K16: Oct | L16: 1.3 | M16: 8.4 | N16: 1.26 | O16: 4.1
A17: Nov | B17: 60 | C17: 0.65 | D17: 3.7 | E17: 8 | F17: 0.72 | G17: 2.5 | K17: Nov | L17: 0.6 | M17: 2.7 | N17: 0.66 | O17: 1.3
A18: Dec | B18: 60 | C18: 2.35 | D18: 9.5 | E18: 8 | F18: 2.28 | G18: 5 | K18: Dec | L18: 1.7 | M18: 9.5 | N18: 1.66 | O18: 4.9
K19: Annual | L19: =AVERAGE(L7:L18) -> 0.9416666667 | M19: =MAX(M7:M18) -> 12.7 | N19: =AVERAGE(N7:N18) -> 0.9836363636 | O19: =MAX(O7:O18) -> 4.9
J21: =+A5 -> 2024 | K21: mg/Nm3 | L21: Monthly mean of half-hourly averages | M21: Highest half- hourly average | N21: Monthly mean of daily averages | O21: Highest daily average
J22: A2 | K22: Jan | L22: 0.4 | M22: 11.8 | N22: 0.41 | O22: 0.9
K23: Feb | L23: 0.6 | M23: 4.2 | N23: 0.64 | O23: 3.2
K24: Mar | L24: 0.9 | M24: 4.9 | N24: 0.87 | O24: 2.8
K25: Apr | L25: 3.6 | M25: 15.6 | N25: 3.64 | O25: 6
K26: May | L26: 1.3 | M26: 7.2 | N26: 1.34 | O26: 4.3
K27: Jun | L27: 0.5 | M27: 2.1 | N27: 0.55 | O27: 0.6
K28: Jul | L28: 0.4 | M28: 2.6 | N28: 0.46 | O28: 0.7
K29: Aug | L29: 1.4 | M29: 7.9 | N29: 1.31 | O29: 4.1
K30: Sep | L30: 2.1 | M30: 12.5 | N30: 2.08 | O30: 4.5
K31: Oct | L31: 1.8 | M31: 8.1 | N31: 1.91 | O31: 4.7
K32: Nov | L32: 0.7 | M32: 3.7 | N32: 0.78 | O32: 2.5
K33: Dec | L33: 3 | M33: 8.6 | N33: 2.9 | O33: 5
K34: Annual | L34: =AVERAGE(L22:L33) -> 1.391666667 | M34: =MAX(M22:M33) -> 15.6 | N34: =AVERAGE(N22:N33) -> 1.4075 | O34: =MAX(O22:O33) -> 6
J36: =+A5 -> 2024 | K36: mg/Nm3 | L36: Monthly mean of half-hourly averages | M36: Highest half- hourly average | N36: Monthly mean of daily averages | O36: Highest daily average
J37: A3 | K37: Jan
K38: Feb
K39: Mar
K40: Apr
K41: May
K42: Jun
K43: Jul
K44: Aug
K45: Sep
K46: Oct
K47: Nov
A48: Comments : | K48: Dec
A49: No daily averages were recorded on Line 1 during June as the plant was shutdown for planned annual maintenance. | K49: Annual | L49: =AVERAGE(L37:L48) ->  | M49: =MAX(M37:M48) -> 0 | N49: =AVERAGE(N37:N48) ->  | O49: =MAX(O37:O48) -> 0
J51: =+A5 -> 2024 | K51: mg/Nm3 | L51: Monthly mean of half-hourly averages | M51: Highest half- hourly average | N51: Monthly mean of daily averages | O51: Highest daily average
J52: A4 | K52: Jan
K53: Feb
K54: Mar
K55: Apr
K56: May
K57: Jun
K58: Jul
K59: Aug
K60: Sep
K61: Oct
K62: Nov
K63: Dec
K64: Annual | L64: =AVERAGE(L52:L63) ->  | M64: =MAX(M52:M63) -> 0 | N64: =AVERAGE(N52:N63) ->  | O64: =MAX(O52:O63) -> 0
J66: =+A5 -> 2024 | K66: mg/Nm3 | L66: Monthly mean of half-hourly averages | M66: Highest half- hourly average | N66: Monthly mean of daily averages | O66: Highest daily average
J67: A5 | K67: Jan
K68: Feb
K69: Mar
K70: Apr
K71: May
K72: Jun
K73: Jul
K74: Aug
K75: Sep
K76: Oct
K77: Nov
K78: Dec
K79: Annual | L79: =AVERAGE(L67:L78) ->  | M79: =MAX(M67:M78) -> 0 | N79: =AVERAGE(N67:N78) ->  | O79: =MAX(O67:O78) -> 0

Sheet SO2
A1: =+'Cover Page'!$B$29 -> Annual Performance Report 2024 | E1: =+'Cover Page'!$B$33 -> Severnside Energy Recovery Centre
A3: Monitoring of Sulphur dioxide emissions | D3: Whole Installation | G3: See Notes in Cell Q3 | J3: =+A3 -> Monitoring of Sulphur dioxide emissions | N3: Per Combustion Line | Q3: Notes:
Q4: User to add logic to complete Whole installation, Table A5:G18. From the data in Per Combustion Line, Table J6:O79, subject to No. of lines installed
A5: =+'Cover Page'!C39 -> 2024 | B5: 1/2 Hourly Reference Periods | E5: Daily Reference Periods
A6: mg/Nm3 | B6: 1/2 hourly SO2 ELV | C6: Monthly mean of half-hourly averages | D6: Highest half- hourly average | E6: Daily SO2 ELV | F6: Monthly mean of daily averages | G6: Highest daily average | J6: =+A5 -> 2024 | K6: mg/Nm3 | L6: Monthly mean of half-hourly averages | M6: Highest half- hourly average | N6: Monthly mean of daily averages | O6: Highest daily average
A7: Jan | B7: 200 | C7: =AVERAGE(L7,L22,L37,L52,L67) -> 3 | D7: =MAX(M7,M22,M37,M52,M67) -> 76 | E7: 40 | F7: =AVERAGE(N7,N22,N37,N52,N67) -> 3.19 | G7: =MAX(O7,O22,O37,O52,O67) -> 12 | J7: A1 | K7: Jan | L7: 4 | M7: 38 | N7: 4.27 | O7: 12
A8: Feb | B8: 200 | C8: =AVERAGE(L8,L23,L38,L53,L68) -> 7 | D8: =MAX(M8,M23,M38,M53,M68) -> 66 | E8: 40 | F8: =AVERAGE(N8,N23,N38,N53,N68) -> 6.775 | G8: =MAX(O8,O23,O38,O53,O68) -> 21 | K8: Feb | L8: 8 | M8: 42 | N8: 7.64 | O8: 21
A9: Mar | B9: 200 | C9: 8 | D9: 121 | E9: 40 | F9: 7.97 | G9: 18 | K9: Mar | L9: 10 | M9: 105 | N9: 10.18 | O9: 18 | Q9: Whole Installation table A5:G18:
A10: Apr | B10: 200 | C10: 5 | D10: 127 | E10: 40 | F10: 4.985 | G10: 18 | K10: Apr | L10: 6 | M10: 82 | N10: 6 | O10: 17 | Q10: Mean: for 1/2 hourly and daily periods calculate mean of values across all operational combustion lines for the month
A11: May | B11: 200 | C11: 4.5 | D11: 90 | E11: 40 | F11: 4.465 | G11: 11 | K11: May | L11: 5 | M11: 78 | N11: 5 | O11: 11
A12: Jun | B12: 200 | C12: 3 | D12: 23 | E12: 40 | F12: 4 | G12: 5 | K12: Jun | L12: 2 | M12: 15 | N12: N/A | O12: N/A
A13: Jul | B13: 200 | C13: 9.5 | D13: 211 | E13: 40 | F13: 9.805 | G13: 24 | K13: Jul | L13: 6 | M13: 140 | N13: 6.37 | O13: 16 | Q13: Maximum: for 1/2 hourly and daily periods use the highest value across all operational combustion lines for the month
A14: Aug | B14: 200 | C14: 7.5 | D14: 88 | E14: 40 | F14: 7.825 | G14: 21 | K14: Aug | L14: 5 | M14: 72 | N14: 5.1 | O14: 14
A15: Sep | B15: 200 | C15: 6 | D15: 143 | E15: 40 | F15: 6.02 | G15: 20 | K15: Sep | L15: 4 | M15: 59 | N15: 3.77 | O15: 11
A16: Oct | B16: 200 | C16: 5.5 | D16: 152 | E16: 40 | F16: 5.51 | G16: 17 | K16: Oct | L16: 3 | M16: 152 | N16: 3.35 | O16: 8
A17: Nov | B17: 200 | C17: 5 | D17: 148 | E17: 40 | F17: 4.75 | G17: 18 | K17: Nov | L17: 2 | M17: 60 | N17: 1.62 | O17: 8
A18: Dec | B18: 200 | C18: 3 | D18: 74 | E18: 40 | F18: 3.135 | G18: 11 | K18: Dec | L18: 1 | M18: 58 | N18: 1.13 | O18: 8
K19: Annual | L19: =AVERAGE(L7:L18) -> 4.666666667 | M19: =MAX(M7:M18) -> 152 | N19: =AVERAGE(N7:N18) -> 4.948181818 | O19: =MAX(O7:O18) -> 21
J21: =+A5 -> 2024 | K21: mg/Nm3 | L21: Monthly mean of half-hourly averages | M21: Highest half- hourly average | N21: Monthly mean of daily averages | O21: Highest daily average
J22: A2 | K22: Jan | L22: 2 | M22: 76 | N22: 2.11 | O22: 6
K23: Feb | L23: 6 | M23: 66 | N23: 5.91 | O23: 14
K24: Mar | L24: 6 | M24: 121 | N24: 5.76 | O24: 14
K25: Apr | L25: 4 | M25: 127 | N25: 3.97 | O25: 18
K26: May | L26: 4 | M26: 90 | N26: 3.93 | O26: 11
K27: Jun | L27: 4 | M27: 23 | N27: 4 | O27: 5
K28: Jul | L28: 13 | M28: 211 | N28: 13.24 | O28: 24
K29: Aug | L29: 10 | M29: 88 | N29: 10.55 | O29: 21
K30: Sep | L30: 8 | M30: 143 | N30: 8.27 | O30: 20
K31: Oct | L31: 8 | M31: 45 | N31: 7.67 | O31: 17
K32: Nov | L32: 8 | M32: 148 | N32: 7.88 | O32: 18
K33: Dec | L33: 5 | M33: 74 | N33: 5.14 | O33: 11
K34: Annual | L34: =AVERAGE(L22:L33) -> 6.5 | M34: =MAX(M22:M33) -> 211 | N34: =AVERAGE(N22:N33) -> 6.535833333 | O34: =MAX(O22:O33) -> 24
J36: =+A5 -> 2024 | K36: mg/Nm3 | L36: Monthly mean of half-hourly averages | M36: Highest half- hourly average | N36: Monthly mean of daily averages | O36: Highest daily average
J37: A3 | K37: Jan
K38: Feb
K39: Mar
K40: Apr
K41: May
K42: Jun
K43: Jul
K44: Aug
K45: Sep
K46: Oct
K47: Nov
A48: Comments : | K48: Dec
A49: No daily averages were recorded on Line 1 during June as the plant was shutdown for planned annual maintenance. | K49: Annual | L49: =AVERAGE(L37:L48) ->  | M49: =MAX(M37:M48) -> 0 | N49: =AVERAGE(N37:N48) ->  | O49: =MAX(O37:O48) -> 0
J51: =+A5 -> 2024 | K51: mg/Nm3 | L51: Monthly mean of half-hourly averages | M51: Highest half- hourly average | N51: Monthly mean of daily averages | O51: Highest daily average
J52: A4 | K52: Jan
K53: Feb
K54: Mar
K55: Apr
K56: May
K57: Jun
K58: Jul
K59: Aug
K60: Sep
K61: Oct
K62: Nov
K63: Dec
K64: Annual | L64: =AVERAGE(L52:L63) ->  | M64: =MAX(M52:M63) -> 0 | N64: =AVERAGE(N52:N63) ->  | O64: =MAX(O52:O63) -> 0
J66: =+A5 -> 2024 | K66: mg/Nm3 | L66: Monthly mean of half-hourly averages | M66: Highest half- hourly average | N66: Monthly mean of daily averages | O66: Highest daily average
J67: A5 | K67: Jan
K68: Feb
K69: Mar
K70: Apr
K71: May
K72: Jun
K73: Jul
K74: Aug
K75: Sep
K76: Oct
K77: Nov
K78: Dec
K79: Annual | L79: =AVERAGE(L67:L78) ->  | M79: =MAX(M67:M78) -> 0 | N79: =AVERAGE(N67:N78) ->  | O79: =MAX(O67:O78) -> 0

Sheet NOx
A1: =+'Cover Page'!$B$29 -> Annual Performance Report 2024 | E1: =+'Cover Page'!$B$33 -> Severnside Energy Recovery Centre
A3: Monitoring of Oxides of Nitrogen emissions | D3: Whole Installation | G3: See Notes in Cell Q3 | J3: =+A3 -> Monitoring of Oxides of Nitrogen emissions | N3: Per Combustion Line | Q3: Notes:
Q4: User to add logic to complete Whole installation, Table A5:G18. From the data in Per Combustion Line, Table J6:O79, subject to No. of lines installed
A5: =+'Cover Page'!C39 -> 2024 | B5: 1/2 Hourly Reference Periods | E5: Daily Reference Periods
A6: mg/Nm3 | B6: 1/2 hourly NOx ELV | C6: Monthly mean of half-hourly averages | D6: Highest half- hourly average | E6: Daily NOx ELV | F6: Monthly mean of daily averages | G6: Highest daily average | J6: =+A5 -> 2024 | K6: mg/Nm3 | L6: Monthly mean of half-hourly averages | M6: Highest half- hourly average | N6: Monthly mean of daily averages | O6: Highest daily average
A7: Jan | B7: 400 | C7: =AVERAGE(L7,L22,L37,L52,L67) -> 134.5 | D7: =MAX(M7,M22,M37,M52,M67) -> 171 | E7: 180 | F7: =AVERAGE(N7,N22,N37,N52,N67) -> 134.045 | G7: =MAX(O7,O22,O37,O52,O67) -> 136 | J7: A1 | K7: Jan | L7: 134 | M7: 165 | N7: 133.91 | O7: 136
A8: Feb | B8: 400 | C8: =AVERAGE(L8,L23,L38,L53,L68) -> 135.5 | D8: =MAX(M8,M23,M38,M53,M68) -> 178 | E8: 180 | F8: =AVERAGE(N8,N23,N38,N53,N68) -> 135.455 | G8: =MAX(O8,O23,O38,O53,O68) -> 137 | K8: Feb | L8: 136 | M8: 178 | N8: 135.5 | O8: 137
A9: Mar | B9: 400 | C9: 127 | D9: 181 | E9: 180 | F9: 126.635 | G9: 136 | K9: Mar | L9: 127 | M9: 181 | N9: 126.86 | O9: 136 | Q9: Whole Installation table A5:G18:
A10: Apr | B10: 400 | C10: 135 | D10: 191 | E10: 180 | F10: 134.815 | G10: 137 | K10: Apr | L10: 135 | M10: 172 | N10: 134.76 | O10: 137 | Q10: Mean: for 1/2 hourly and daily periods calculate mean of values across all operational combustion lines for the month
A11: May | B11: 400 | C11: 134.5 | D11: 235 | E11: 180 | F11: 134.255 | G11: 141 | K11: May | L11: 134 | M11: 232 | N11: 134.04 | O11: 141
A12: Jun | B12: 400 | C12: 137 | D12: 165 | E12: 180 | F12: 135 | G12: 136 | K12: Jun | L12: 139 | M12: 153 | N12: N/A | O12: N/A
A13: Jul | B13: 400 | C13: 135.5 | D13: 220 | E13: 180 | F13: 135.475 | G13: 141 | K13: Jul | L13: 136 | M13: 220 | N13: 135.47 | O13: 141 | Q13: Maximum: for 1/2 hourly and daily periods use the highest value across all operational combustion lines for the month
A14: Aug | B14: 400 | C14: 136 | D14: 225 | E14: 180 | F14: 135.405 | G14: 139 | K14: Aug | L14: 135 | M14: 225 | N14: 135.33 | O14: 136
A15: Sep | B15: 400 | C15: 135.5 | D15: 197 | E15: 180 | F15: 135.355 | G15: 138 | K15: Sep | L15: 136 | M15: 197 | N15: 135.38 | O15: 138
A16: Oct | B16: 400 | C16: 135 | D16: 194 | E16: 180 | F16: 135.55 | G16: 138 | K16: Oct | L16: 135 | M16: 194 | N16: 135.77 | O16: 138
A17: Nov | B17: 400 | C17: 136 | D17: 187 | E17: 180 | F17: 135.355 | G17: 136 | K17: Nov | L17: 136 | M17: 187 | N17: 135.38 | O17: 136
A18: Dec | B18: 400 | C18: 134 | D18: 190 | E18: 180 | F18: 133.535 | G18: 137 | K18: Dec | L18: 134 | M18: 190 | N18: 133.61 | O18: 137
K19: Annual | L19: =AVERAGE(L7:L18) -> 134.75 | M19: =MAX(M7:M18) -> 232 | N19: =AVERAGE(N7:N18) -> 134.1827273 | O19: =MAX(O7:O18) -> 141
J21: =+A5 -> 2024 | K21: mg/Nm3 | L21: Monthly mean of half-hourly averages | M21: Highest half- hourly average | N21: Monthly mean of daily averages | O21: Highest daily average
J22: A2 | K22: Jan | L22: 135 | M22: 171 | N22: 134.18 | O22: 136
K23: Feb | L23: 135 | M23: 171 | N23: 135.41 | O23: 137
K24: Mar | L24: 127 | M24: 174 | N24: 126.41 | O24: 136
K25: Apr | L25: 135 | M25: 191 | N25: 134.87 | O25: 137
K26: May | L26: 135 | M26: 235 | N26: 134.47 | O26: 139
K27: Jun | L27: 135 | M27: 165 | N27: 135 | O27: 136
K28: Jul | L28: 135 | M28: 180 | N28: 135.48 | O28: 138
K29: Aug | L29: 137 | M29: 221 | N29: 135.48 | O29: 139
K30: Sep | L30: 135 | M30: 188 | N30: 135.33 | O30: 136
K31: Oct | L31: 135 | M31: 190 | N31: 135.33 | O31: 136
K32: Nov | L32: 136 | M32: 175 | N32: 135.33 | O32: 136
K33: Dec | L33: 134 | M33: 182 | N33: 133.46 | O33: 137
K34: Annual | L34: =AVERAGE(L22:L33) -> 134.5 | M34: =MAX(M22:M33) -> 235 | N34: =AVERAGE(N22:N33) -> 134.2291667 | O34: =MAX(O22:O33) -> 139
J36: =+A5 -> 2024 | K36: mg/Nm3 | L36: Monthly mean of half-hourly averages | M36: Highest half- hourly average | N36: Monthly mean of daily averages | O36: Highest daily average
J37: A3 | K37: Jan
K38: Feb
K39: Mar
K40: Apr
K41: May
K42: Jun
K43: Jul
K44: Aug
K45: Sep
K46: Oct
K47: Nov
A48: Comments : | K48: Dec
A49: No daily averages were recorded on Line 1 during June as the plant was shutdown for planned annual maintenance. | K49: Annual | L49: =AVERAGE(L37:L48) ->  | M49: =MAX(M37:M48) -> 0 | N49: =AVERAGE(N37:N48) ->  | O49: =MAX(O37:O48) -> 0
J51: =+A5 -> 2024 | K51: mg/Nm3 | L51: Monthly mean of half-hourly averages | M51: Highest half- hourly average | N51: Monthly mean of daily averages | O51: Highest daily average
J52: A4 | K52: Jan
K53: Feb
K54: Mar
K55: Apr
K56: May
K57: Jun
K58: Jul
K59: Aug
K60: Sep
K61: Oct
K62: Nov
K63: Dec
K64: Annual | L64: =AVERAGE(L52:L63) ->  | M64: =MAX(M52:M63) -> 0 | N64: =AVERAGE(N52:N63) ->  | O64: =MAX(O52:O63) -> 0
J66: =+A5 -> 2024 | K66: mg/Nm3 | L66: Monthly mean of half-hourly averages | M66: Highest half- hourly average | N66: Monthly mean of daily averages | O66: Highest daily average
J67: A5 | K67: Jan
K68: Feb
K69: Mar
K70: Apr
K71: May
K72: Jun
K73: Jul
K74: Aug
K75: Sep
K76: Oct
K77: Nov
K78: Dec
K79: Annual | L79: =AVERAGE(L67:L78) ->  | M79: =MAX(M67:M78) -> 0 | N79: =AVERAGE(N67:N78) ->  | O79: =MAX(O67:O78) -> 0

Sheet TOC
A1: =+'Cover Page'!$B$29 -> Annual Performance Report 2024 | E1: =+'Cover Page'!$B$33 -> Severnside Energy Recovery Centre
A3: Monitoring of Total organic carbon emissions | D3: Whole Installation | G3: See Notes in Cell Q3 | J3: =+A3 -> Monitoring of Total organic carbon emissions | N3: Per Combustion Line | Q3: Notes:
Q4: User to add logic to complete Whole installation, Table A5:G18. From the data in Per Combustion Line, Table J6:O79, subject to No. of lines installed
A5: =+'Cover Page'!C39 -> 2024 | B5: 1/2 Hourly Reference Periods | E5: Daily Reference Periods
A6: mg/Nm3 | B6: 1/2 hourly TOC ELV | C6: Monthly mean of half-hourly averages | D6: Highest half- hourly average | E6: Daily TOC ELV | F6: Monthly mean of daily averages | G6: Highest daily average | J6: =+A5 -> 2024 | K6: mg/Nm3 | L6: Monthly mean of half-hourly averages | M6: Highest half- hourly average | N6: Monthly mean of daily averages | O6: Highest daily average
A7: Jan | B7: 20 | C7: =AVERAGE(L7,L22,L37,L52,L67) -> 0.2 | D7: =MAX(M7,M22,M37,M52,M67) -> 5.1 | E7: 10 | F7: =AVERAGE(N7,N22,N37,N52,N67) -> 0.215 | G7: =MAX(O7,O22,O37,O52,O67) -> 0.5 | J7: A1 | K7: Jan | L7: 0.1 | M7: 3.4 | N7: 0.1 | O7: 0.2
A8: Feb | B8: 20 | C8: =AVERAGE(L8,L23,L38,L53,L68) -> 0.2 | D8: =MAX(M8,M23,M38,M53,M68) -> 2.8 | E8: 10 | F8: =AVERAGE(N8,N23,N38,N53,N68) -> 0.195 | G8: =MAX(O8,O23,O38,O53,O68) -> 0.5 | K8: Feb | L8: 0.1 | M8: 2.3 | N8: 0.09 | O8: 0.4
A9: Mar | B9: 20 | C9: 0.15 | D9: 3.3 | E9: 10 | F9: 0.155 | G9: 0.4 | K9: Mar | L9: 0.1 | M9: 3.3 | N9: 0.09 | O9: 0.2 | Q9: Whole Installation table A5:G18:
A10: Apr | B10: 20 | C10: 0.15 | D10: 4.6 | E10: 10 | F10: 0.17 | G10: 0.3 | K10: Apr | L10: 0.1 | M10: 4.6 | N10: 0.14 | O10: 0.3 | Q10: Mean: for 1/2 hourly and daily periods calculate mean of values across all operational combustion lines for the month
A11: May | B11: 20 | C11: 0.1 | D11: 7 | E11: 10 | F11: 0.135 | G11: 0.3 | K11: May | L11: 0.1 | M11: 7 | N11: 0.13 | O11: 0.3
A12: Jun | B12: 20 | C12: 0.15 | D12: 3 | E12: 10 | F12: 0.15 | G12: 0.2 | K12: Jun | L12: 0.1 | M12: 0.5 | N12: N/A | O12: N/A
A13: Jul | B13: 20 | C13: 0.2 | D13: 6.7 | E13: 10 | F13: 0.185 | G13: 0.3 | K13: Jul | L13: 0.2 | M13: 6.7 | N13: 0.17 | O13: 0.3 | Q13: Maximum: for 1/2 hourly and daily periods use the highest value across all operational combustion lines for the month
A14: Aug | B14: 20 | C14: 0.2 | D14: 6.2 | E14: 10 | F14: 0.19 | G14: 0.4 | K14: Aug | L14: 0.2 | M14: 6.2 | N14: 0.2 | O14: 0.4
A15: Sep | B15: 20 | C15: 0.15 | D15: 3.9 | E15: 10 | F15: 0.155 | G15: 0.4 | K15: Sep | L15: 0.1 | M15: 3.9 | N15: 0.13 | O15: 0.4
A16: Oct | B16: 20 | C16: 0.3 | D16: 3.2 | E16: 10 | F16: 0.265 | G16: 2 | K16: Oct | L16: 0.4 | M16: 3.2 | N16: 0.38 | O16: 2
A17: Nov | B17: 20 | C17: 0.35 | D17: 3.5 | E17: 10 | F17: 0.28 | G17: 1.3 | K17: Nov | L17: 0.5 | M17: 2.7 | N17: 0.47 | O17: 1.3
A18: Dec | B18: 20 | C18: 0.3 | D18: 3 | E18: 10 | F18: 0.295 | G18: 1.3 | K18: Dec | L18: 0.5 | M18: 2.3 | N18: 0.48 | O18: 1.3
K19: Annual | L19: =AVERAGE(L7:L18) -> 0.2083333333 | M19: =MAX(M7:M18) -> 7 | N19: =AVERAGE(N7:N18) -> 0.2163636364 | O19: =MAX(O7:O18) -> 2
J21: =+A5 -> 2024 | K21: mg/Nm3 | L21: Monthly mean of half-hourly averages | M21: Highest half- hourly average | N21: Monthly mean of daily averages | O21: Highest daily average
J22: A2 | K22: Jan | L22: 0.3 | M22: 5.1 | N22: 0.33 | O22: 0.5
K23: Feb | L23: 0.3 | M23: 2.8 | N23: 0.3 | O23: 0.5
K24: Mar | L24: 0.2 | M24: 3.1 | N24: 0.22 | O24: 0.4
K25: Apr | L25: 0.2 | M25: 3.5 | N25: 0.2 | O25: 0.3
K26: May | L26: 0.1 | M26: 2.7 | N26: 0.14 | O26: 0.3
K27: Jun | L27: 0.2 | M27: 3 | N27: 0.15 | O27: 0.2
K28: Jul | L28: 0.2 | M28: 3.1 | N28: 0.2 | O28: 0.3
K29: Aug | L29: 0.2 | M29: 3.3 | N29: 0.18 | O29: 0.2
K30: Sep | L30: 0.2 | M30: 3 | N30: 0.18 | O30: 0.4
K31: Oct | L31: 0.2 | M31: 2.7 | N31: 0.15 | O31: 0.3
K32: Nov | L32: 0.2 | M32: 3.5 | N32: 0.09 | O32: 0.3
K33: Dec | L33: 0.1 | M33: 3 | N33: 0.11 | O33: 0.4
K34: Annual | L34: =AVERAGE(L22:L33) -> 0.2 | M34: =MAX(M22:M33) -> 5.1 | N34: =AVERAGE(N22:N33) -> 0.1875 | O34: =MAX(O22:O33) -> 0.5
J36: =+A5 -> 2024 | K36: mg/Nm3 | L36: Monthly mean of half-hourly averages | M36: Highest half- hourly average | N36: Monthly mean of daily averages | O36: Highest daily average
J37: A3 | K37: Jan
K38: Feb
K39: Mar
K40: Apr
K41: May
K42: Jun
K43: Jul
K44: Aug
K45: Sep
K46: Oct
K47: Nov
A48: Comments : | K48: Dec
A49: No daily averages were recorded on Line 1 during June as the plant was shutdown for planned annual maintenance. | K49: Annual | L49: =AVERAGE(L37:L48) ->  | M49: =MAX(M37:M48) -> 0 | N49: =AVERAGE(N37:N48) ->  | O49: =MAX(O37:O48) -> 0
J51: =+A5 -> 2024 | K51: mg/Nm3 | L51: Monthly mean of half-hourly averages | M51: Highest half- hourly average | N51: Monthly mean of daily averages | O51: Highest daily average
J52: A4 | K52: Jan
K53: Feb
K54: Mar
K55: Apr
K56: May
K57: Jun
K58: Jul
K59: Aug
K60: Sep
K61: Oct
K62: Nov
K63: Dec
K64: Annual | L64: =AVERAGE(L52:L63) ->  | M64: =MAX(M52:M63) -> 0 | N64: =AVERAGE(N52:N63) ->  | O64: =MAX(O52:O63) -> 0
J66: =+A5 -> 2024 | K66: mg/Nm3 | L66: Monthly mean of half-hourly averages | M66: Highest half- hourly average | N66: Monthly mean of daily averages | O66: Highest daily average
J67: A5 | K67: Jan
K68: Feb
K69: Mar
K70: Apr
K71: May
K72: Jun
K73: Jul
K74: Aug
K75: Sep
K76: Oct
K77: Nov
K78: Dec
K79: Annual | L79: =AVERAGE(L67:L78) ->  | M79: =MAX(M67:M78) -> 0 | N79: =AVERAGE(N67:N78) ->  | O79: =MAX(O67:O78) -> 0

Sheet Particulates
A1: =+'Cover Page'!$B$29 -> Annual Performance Report 2024 | E1: =+'Cover Page'!$B$33 -> Severnside Energy Recovery Centre
A3: Monitoring of Particulate matter emissions | D3: Whole Installation | G3: See Notes in Cell Q3 | J3: =+A3 -> Monitoring of Particulate matter emissions | N3: Per Combustion Line | Q3: Notes:
A5: =+'Cover Page'!C39 -> 2024 | B5: 1/2 Hourly Reference Periods | E5: Daily Reference Periods | Q5: User to add logic to complete Whole installation, Table A5:G18. From the data in Per Combustion Line, Table J6:O79, subject to No. of lines installed
A6: mg/Nm3 | B6: 1/2 hourly PM ELV | C6: Monthly mean of half-hourly averages | D6: Highest half- hourly average | E6: Daily PM ELV | F6: Monthly mean of daily averages | G6: Highest daily average | J6: =+A5 -> 2024 | K6: mg/Nm3 | L6: Monthly mean of half-hourly averages | M6: Highest half- hourly average | N6: Monthly mean of daily averages | O6: Highest daily average
A7: Jan | B7: 30 | C7: =AVERAGE(L7,L22,L37,L52,L67) -> 2.9 | D7: =MAX(M7,M22,M37,M52,M67) -> 391.7 | E7: 5 | F7: =AVERAGE(N7,N22,N37,N52,N67) -> 1.615 | G7: =MAX(O7,O22,O37,O52,O67) -> 2.5 | J7: A1 | K7: Jan | L7: 3.8 | M7: 391.7 | N7: 1.23 | O7: 2.5
A8: Feb | B8: 30 | C8: =AVERAGE(L8,L23,L38,L53,L68) -> 4.5 | D8: =MAX(M8,M23,M38,M53,M68) -> 337.5 | E8: 5 | F8: =AVERAGE(N8,N23,N38,N53,N68) -> 1.575 | G8: =MAX(O8,O23,O38,O53,O68) -> 3.4 | K8: Feb | L8: 1.4 | M8: 3.8 | N8: 1.39 | O8: 1.6
A9: Mar | B9: 30 | C9: 1.4 | D9: 3.8 | E9: 5 | F9: 1.405 | G9: 2 | K9: Mar | L9: 1.4 | M9: 3.8 | N9: 1.44 | O9: 1.8
A10: Apr | B10: 30 | C10: 1.35 | D10: 4.6 | E10: 5 | F10: 1.39 | G10: 2.1 | K10: Apr | L10: 1.5 | M10: 4.6 | N10: 1.53 | O10: 2.1 | Q10: Whole Installation table A5:G18:
A11: May | B11: 30 | C11: 1.45 | D11: 13.3 | E11: 5 | F11: 1.4 | G11: 2 | K11: May | L11: 1.6 | M11: 13.3 | N11: 1.46 | O11: 2 | Q11: Mean: for 1/2 hourly and daily periods calculate mean of values across all operational combustion lines for the month
A12: Jun | B12: 30 | C12: 1.7 | D12: 7.9 | E12: 5 | F12: 1.25 | G12: 1.3 | K12: Jun | L12: 2.2 | M12: 7.9 | N12: N/A | O12: N/A
A13: Jul | B13: 30 | C13: 0.9 | D13: 2.2 | E13: 5 | F13: 0.895 | G13: 1.3 | K13: Jul | L13: 0.9 | M13: 1.5 | N13: 0.87 | O13: 0.9
A14: Aug | B14: 30 | C14: 1 | D14: 23.1 | E14: 5 | F14: 0.94 | G14: 1.1 | K14: Aug | L14: 1 | M14: 23.1 | N14: 0.92 | O14: 1 | Q14: Maximum: for 1/2 hourly and daily periods use the highest value across all operational combustion lines for the month
A15: Sep | B15: 30 | C15: 1.1 | D15: 1.8 | E15: 5 | F15: 1.075 | G15: 1.5 | K15: Sep | L15: 1 | M15: 1.4 | N15: 0.99 | O15: 1.1
A16: Oct | B16: 30 | C16: 1.45 | D16: 10.6 | E16: 5 | F16: 1.415 | G16: 2.9 | K16: Oct | L16: 1.1 | M16: 3.8 | N16: 1.04 | O16: 1.3
A17: Nov | B17: 30 | C17: 2.95 | D17: 16.1 | E17: 5 | F17: 2.63 | G17: 4.7 | K17: Nov | L17: 1.8 | M17: 2.5 | N17: 1.81 | O17: 2
A18: Dec | B18: 30 | C18: 1.55 | D18: 4.8 | E18: 5 | F18: 1.505 | G18: 2.5 | K18: Dec | L18: 1.7 | M18: 2.3 | N18: 1.65 | O18: 1.9
K19: Annual | L19: =AVERAGE(L7:L18) -> 1.616666667 | M19: =MAX(M7:M18) -> 391.7 | N19: =AVERAGE(N7:N18) -> 1.302727273 | O19: =MAX(O7:O18) -> 2.5
J21: =+A5 -> 2024 | K21: mg/Nm3 | L21: Monthly mean of half-hourly averages | M21: Highest half- hourly average | N21: Monthly mean of daily averages | O21: Highest daily average
J22: A2 | K22: Jan | L22: 2 | M22: 15.4 | N22: 2 | O22: 2.4
K23: Feb | L23: 7.6 | M23: 337.5 | N23: 1.76 | O23: 3.4
K24: Mar | L24: 1.4 | M24: 3.7 | N24: 1.37 | O24: 2
K25: Apr | L25: 1.2 | M25: 2.4 | N25: 1.25 | O25: 1.5
K26: May | L26: 1.3 | M26: 3 | N26: 1.34 | O26: 1.6
K27: Jun | L27: 1.2 | M27: 2.6 | N27: 1.25 | O27: 1.3
K28: Jul | L28: 0.9 | M28: 2.2 | N28: 0.92 | O28: 1.3
K29: Aug | L29: 1 | M29: 6.8 | N29: 0.96 | O29: 1.1
K30: Sep | L30: 1.2 | M30: 1.8 | N30: 1.16 | O30: 1.5
K31: Oct | L31: 1.8 | M31: 10.6 | N31: 1.79 | O31: 2.9
K32: Nov | L32: 4.1 | M32: 16.1 | N32: 3.45 | O32: 4.7
K33: Dec | L33: 1.4 | M33: 4.8 | N33: 1.36 | O33: 2.5
K34: Annual | L34: =AVERAGE(L22:L33) -> 2.091666667 | M34: =MAX(M22:M33) -> 337.5 | N34: =AVERAGE(N22:N33) -> 1.550833333 | O34: =MAX(O22:O33) -> 4.7
J36: =+A5 -> 2024 | K36: mg/Nm3 | L36: Monthly mean of half-hourly averages | M36: Highest half- hourly average | N36: Monthly mean of daily averages | O36: Highest daily average
J37: A3 | K37: Jan
K38: Feb
K39: Mar
K40: Apr
K41: May
K42: Jun
K43: Jul
K44: Aug
K45: Sep
K46: Oct
K47: Nov
A48: Comments : | K48: Dec
A49: No daily averages were recorded on Line 1 during June as the plant was shutdown for planned annual maintenance. | K49: Annual | L49: =AVERAGE(L37:L48) ->  | M49: =MAX(M37:M48) -> 0 | N49: =AVERAGE(N37:N48) ->  | O49: =MAX(O37:O48) -> 0
J51: =+A5 -> 2024 | K51: mg/Nm3 | L51: Monthly mean of half-hourly averages | M51: Highest half- hourly average | N51: Monthly mean of daily averages | O51: Highest daily average
J52: A4 | K52: Jan
K53: Feb
K54: Mar
K55: Apr
K56: May
K57: Jun
K58: Jul
K59: Aug
K60: Sep
K61: Oct
K62: Nov
K63: Dec
K64: Annual | L64: =AVERAGE(L52:L63) ->  | M64: =MAX(M52:M63) -> 0 | N64: =AVERAGE(N52:N63) ->  | O64: =MAX(O52:O63) -> 0
J66: =+A5 -> 2024 | K66: mg/Nm3 | L66: Monthly mean of half-hourly averages | M66: Highest half- hourly average | N66: Monthly mean of daily averages | O66: Highest daily average
J67: A5 | K67: Jan
K68: Feb
K69: Mar
K70: Apr
K71: May
K72: Jun
K73: Jul
K74: Aug
K75: Sep
K76: Oct
K77: Nov
K78: Dec
K79: Annual | L79: =AVERAGE(L67:L78) ->  | M79: =MAX(M67:M78) -> 0 | N79: =AVERAGE(N67:N78) ->  | O79: =MAX(O67:O78) -> 0

Sheet CO 95% 10 min
A1: =+'Cover Page'!$B$29 -> Annual Performance Report 2024 | E1: =+'Cover Page'!$B$33 -> Severnside Energy Recovery Centre
A3: Monitoring of Carbon Monoxide (10-minute avg) | E3: Whole Installation | H3: See Notes in Cell S3 | J3: =+A3 -> Monitoring of Carbon Monoxide (10-minute avg) | O3: Per Combustion Line | Q3: Notes: | S3: Notes:
S5: User to add logic to complete Whole installation, Table A5:H18. From the data in Per Combustion Line, Table K6:Q79, subject to No. of lines installed
A6: =+'Cover Page'!C39 -> 2024 | B6: 10-minute Reference Periods | F6: Daily Reference Periods
A7: mg/Nm3 | B7: 95%ile 10-min avg CO ELV | C7: Highest daily 95%ile 10-min average | D7: Monthly mean of 10-min averages | E7: Highest 10-min average | F7: Daily CO ELV | G7: Monthly mean of daily averages | H7: Highest daily average | K7: =+A6 -> 2024 | L7: mg/Nm3 | M7: Highest daily 95%ile 10-min average | N7: Monthly mean of 10-min averages | O7: Highest 10-min average | P7: Monthly mean of daily averages | Q7: Highest daily average
A8: Jan | B8: 150 | C8: =AVERAGE(M8,M23,M38,M53,M68) -> 3.96 | D8: =AVERAGE(N8,N23,N38,N53,N68) -> 2.25 | E8: =MAX(O8,O23,O38,O53,O68) -> 388.8 | F8: 50 | G8: =AVERAGE(P8,P23,P38,P53,P68) -> 2.375 | H8: =MAX(Q8,Q23,Q38,Q53,Q68) -> 4.9 | K8: A1 | L8: Jan | M8: 3.11 | N8: 2.5 | O8: 115.7 | P8: 2.6 | Q8: 3.4
A9: Feb | B9: =+B8 -> 150 | C9: =AVERAGE(M9,M24,M39,M54,M69) -> 2.92 | D9: =AVERAGE(N9,N24,N39,N54,N69) -> 1.85 | E9: =MAX(O9,O24,O39,O54,O69) -> 179.6 | F9: =+F8 -> 50 | G9: =AVERAGE(P9,P24,P39,P54,P69) -> 1.91 | H9: =MAX(Q9,Q24,Q39,Q54,Q69) -> 3.7 | L9: Feb | M9: 3.36 | N9: 2.7 | O9: 136.2 | P9: 2.68 | Q9: 3.7
A10: Mar | B10: =+B9 -> 150 | C10: 3.53 | D10: 2.2 | E10: 196 | F10: =+F9 -> 50 | G10: 2.06 | H10: 3.5 | L10: Mar | M10: 3.77 | N10: 2.6 | O10: 136.3 | P10: 2.44 | Q10: 3.5 | S10: Whole Installation table A5:H18:
A11: Apr | B11: 150 | C11: 4.715 | D11: 2.75 | E11: 352.5 | F11: 50 | G11: 2.78 | H11: 6.6 | L11: Apr | M11: 5.44 | N11: 3.8 | O11: 268.1 | P11: 3.84 | Q11: 6.6 | S11: Mean: for 10-min and daily periods use average of all operational combustion lines.
A12: May | B12: 150 | C12: 3.185 | D12: 1.8 | E12: 226.6 | F12: 50 | G12: 1.735 | H12: 4.5 | L12: May | M12: 4.35 | N12: 2.8 | O12: 226.6 | P12: 2.7 | Q12: 4.5
A13: Jun | B13: 150 | C13: 1.205 | D13: 0.85 | E13: 79.6 | F13: 50 | G13: 0.75 | H13: 1.3 | L13: Jun | M13: 1.14 | N13: 0.9 | O13: 21.2 | P13: N/A | Q13: N/A
A14: Jul | B14: 150 | C14: 3.785 | D14: 1.25 | E14: 580.1 | F14: 50 | G14: 1.24 | H14: 6.9 | L14: Jul | M14: 4.11 | N14: 1.5 | O14: 580.1 | P14: 1.49 | Q14: 6.9 | S14: Maximum: for 10-min and daily periods use the highest of all operational combustion lines in any month.
A15: Aug | B15: 150 | C15: 4.175 | D15: 1.45 | E15: 524 | F15: 50 | G15: 1.395 | H15: 4.4 | L15: Aug | M15: 4.16 | N15: 1.4 | O15: 400.3 | P15: 1.42 | Q15: 4.4
A16: Sep | B16: 150 | C16: 2.565 | D16: 1.3 | E16: 284.9 | F16: 50 | G16: 1.315 | H16: 3.4 | L16: Sep | M16: 2.5 | N16: 1.3 | O16: 194.9 | P16: 1.3 | Q16: 3.4
A17: Oct | B17: 150 | C17: 3.86 | D17: 1.45 | E17: 329.6 | F17: 50 | G17: 1.36 | H17: 5.2 | L17: Oct | M17: 4.16 | N17: 1.7 | O17: 329.6 | P17: 1.6 | Q17: 5.2
A18: Nov | B18: 150 | C18: 4.44 | D18: 2.25 | E18: 413.4 | F18: 50 | G18: 2.31 | H18: 5.5 | L18: Nov | M18: 5.45 | N18: 3 | O18: 413.4 | P18: 3.08 | Q18: 5.5
A19: Dec | B19: 150 | C19: 4.665 | D19: 2.2 | E19: 369.4 | F19: 50 | G19: 2.21 | H19: 6.1 | L19: Dec | M19: 5.33 | N19: 2.8 | O19: 369.4 | P19: 2.82 | Q19: 6.1
L20: Annual | M20: =AVERAGE(M8:M19) -> 3.906666667 | O20: =MAX(O8:O19) -> 580.1 | P20: =AVERAGE(P8:P19) -> 2.360909091 | Q20: =MAX(Q8:Q19) -> 6.9
K22: =+A6 -> 2024 | L22: mg/Nm3 | M22: Highest daily 95%ile 10-min average | N22: Monthly mean of 10-min averages | O22: Highest 10-min average | P22: Monthly mean of daily averages | Q22: Highest daily average
K23: A2 | L23: Jan | M23: 4.81 | N23: 2 | O23: 388.8 | P23: 2.15 | Q23: 4.9
L24: Feb | M24: 2.48 | N24: 1 | O24: 179.6 | P24: 1.14 | Q24: 3.6
L25: Mar | M25: 3.29 | N25: 1.8 | O25: 196 | P25: 1.68 | Q25: 3.3
L26: Apr | M26: 3.99 | N26: 1.7 | O26: 352.5 | P26: 1.72 | Q26: 4.3
L27: May | M27: 2.02 | N27: 0.8 | O27: 212.5 | P27: 0.77 | Q27: 2.1
L28: Jun | M28: 1.27 | N28: 0.8 | O28: 79.6 | P28: 0.75 | Q28: 1.3
L29: Jul | M29: 3.46 | N29: 1 | O29: 169.9 | P29: 0.99 | Q29: 3.5
L30: Aug | M30: 4.19 | N30: 1.5 | O30: 524 | P30: 1.37 | Q30: 4.2
L31: Sep | M31: 2.63 | N31: 1.3 | O31: 284.9 | P31: 1.33 | Q31: 2.9
L32: Oct | M32: 3.56 | N32: 1.2 | O32: 176.1 | P32: 1.12 | Q32: 3.5
L33: Nov | M33: 3.43 | N33: 1.5 | O33: 288.1 | P33: 1.54 | Q33: 3.3
L34: Dec | M34: 4 | N34: 1.6 | O34: 253.2 | P34: 1.6 | Q34: 4.2
L35: Annual | M35: =AVERAGE(M23:M34) -> 3.260833333 | O35: =MAX(O23:O34) -> 524 | P35: =AVERAGE(P23:P34) -> 1.346666667 | Q35: =MAX(Q23:Q34) -> 4.9
K37: =+A6 -> 2024 | L37: mg/Nm3 | M37: Highest daily 95%ile 10-min average | N37: Monthly mean of 10-min averages | O37: Highest 10-min average | P37: Monthly mean of daily averages | Q37: Highest daily average
K38: A3 | L38: Jan
L39: Feb
L40: Mar
L41: Apr
L42: May
L43: Jun
L44: Jul
L45: Aug
L46: Sep
L47: Oct
L48: Nov
A49: Comments : | L49: Dec
A50: Environment Agency explanatory note: The 10-minute average ELV is based on the “95th percentile”. In this case this means that 95% of the 10 minute averages in the relevant 24-hour period (i.e. 137) must be below 150 mg/Nm3, and 5% (i.e. 7) are allowed to be any value above 150 mg/Nm3. Whilst we expect operators to minimise CO emissions at all times, it is perfectly acceptable for the value of the maximum 10-minute average to be above 150 mg/Nm3, provided the 95th percentile ELV has been met for that period. No daily averages were recorded on Line 1 during June as the plant was shutdown for planned annual maintenance. | L50: Annual | M50: =AVERAGE(M38:M49) ->  | O50: =MAX(O38:O49) -> 0 | P50: =AVERAGE(P38:P49) ->  | Q50: =MAX(Q38:Q49) -> 0
K52: =+A6 -> 2024 | L52: mg/Nm3 | M52: Highest daily 95%ile 10-min average | N52: Monthly mean of 10-min averages | O52: Highest 10-min average | P52: Monthly mean of daily averages | Q52: Highest daily average
K53: A4 | L53: Jan
L54: Feb
L55: Mar
L56: Apr
L57: May
L58: Jun
L59: Jul
L60: Aug
L61: Sep
L62: Oct
L63: Nov
L64: Dec
L65: Annual | M65: =AVERAGE(M53:M64) ->  | O65: =MAX(O53:O64) -> 0 | P65: =AVERAGE(P53:P64) ->  | Q65: =MAX(Q53:Q64) -> 0
K67: =+A6 -> 2024 | L67: mg/Nm3 | M67: 95%ile 10-min avg maximum | N67: Monthly CO 10-min avg mean | O67: 10-min avg maximum | P67: Monthly daily mean | Q67: Monthly daily maximum
K68: A5 | L68: Jan
L69: Feb
L70: Mar
L71: Apr
L72: May
L73: Jun
L74: Jul
L75: Aug
L76: Sep
L77: Oct
L78: Nov
L79: Dec
L80: Annual | M80: =AVERAGE(M68:M79) ->  | O80: =MAX(O68:O79) -> 0 | P80: =AVERAGE(P68:P79) ->  | Q80: =MAX(Q68:Q79) -> 0

Sheet NH3
A1: =+'Cover Page'!$B$29 -> Annual Performance Report 2024 | E1: =+'Cover Page'!$B$33 -> Severnside Energy Recovery Centre
A3: Monitoring of Ammonia emissions | D3: Whole Installation | G3: See Notes in Cell Q3 | J3: =+A3 -> Monitoring of Ammonia emissions | N3: Per Combustion Line | Q3: Notes:
Q4: User to add logic to complete Whole installation, Table A5:G18. From the data in Per Combustion Line, Table J6:O79, subject to No. of lines installed
A5: =+'Cover Page'!C39 -> 2024 | B5: 1/2 Hourly Reference Periods | E5: Daily Reference Periods
A6: mg/Nm3 | B6: 1/2 hourly NH3 ELV | C6: Monthly mean of half-hourly averages | D6: Highest half- hourly average | E6: Daily NH3 ELV | F6: Monthly mean of daily averages | G6: Highest daily average | J6: =+A5 -> 2024 | K6: mg/Nm3 | L6: Monthly mean of half-hourly averages | M6: Highest half- hourly average | N6: Monthly mean of daily averages | O6: Highest daily average
A7: Jan | B7: None | C7: =AVERAGE(L7,L22,L37,L52,L67) -> 2.15 | D7: =MAX(M7,M22,M37,M52,M67) -> 7.2 | E7: 10 | F7: =AVERAGE(N7,N22,N37,N52,N67) -> 2.175 | G7: =MAX(O7,O22,O37,O52,O67) -> 4 | J7: A1 | K7: Jan | L7: 2.2 | M7: 6.3 | N7: 2.23 | O7: 3.7
A8: Feb | B8: =+B7 -> None | C8: =AVERAGE(L8,L23,L38,L53,L68) -> 2.2 | D8: =MAX(M8,M23,M38,M53,M68) -> 10.3 | E8: 10 | F8: =AVERAGE(N8,N23,N38,N53,N68) -> 2.29 | G8: =MAX(O8,O23,O38,O53,O68) -> 5.1 | K8: Feb | L8: 2.3 | M8: 10.3 | N8: 2.39 | O8: 3.9
A9: Mar | B9: =+B8 -> None | C9: 1.45 | D9: 15.1 | E9: 10 | F9: 1.475 | G9: 2.9 | K9: Mar | L9: 1.8 | M9: 15.1 | N9: 1.83 | O9: 2.9 | Q9: Whole Installation table A5:G18:
A10: Apr | B10: None | C10: 0.8 | D10: 7.3 | E10: 10 | F10: 0.815 | G10: 2.6 | K10: Apr | L10: 0.9 | M10: 7.3 | N10: 0.94 | O10: 2.6 | Q10: Mean: for 1/2 hourly and daily periods calculate mean of values across all operational combustion lines for the month
A11: May | B11: None | C11: 0.85 | D11: 7.2 | E11: 10 | F11: 0.85 | G11: 1.7 | K11: May | L11: 1 | M11: 5.6 | N11: 0.99 | O11: 1.7
A12: Jun | B12: None | C12: 0.45 | D12: 1.9 | E12: 10 | F12: 0.65 | G12: 0.8 | K12: Jun | L12: 0.2 | M12: 0.5 | N12: N/A | O12: N/A
A13: Jul | B13: None | C13: 0.9 | D13: 8.1 | E13: 10 | F13: 0.96 | G13: 3.5 | K13: Jul | L13: 0.5 | M13: 3.2 | N13: 0.55 | O13: 1.1 | Q13: Maximum: for 1/2 hourly and daily periods use the highest value across all operational combustion lines for the month
A14: Aug | B14: None | C14: 0.5 | D14: 6 | E14: 10 | F14: 0.51 | G14: 2.1 | K14: Aug | L14: 0.6 | M14: 6 | N14: 0.56 | O14: 2.1
A15: Sep | B15: None | C15: 0.5 | D15: 4.1 | E15: 10 | F15: 0.545 | G15: 1.5 | K15: Sep | L15: 0.7 | M15: 4.1 | N15: 0.75 | O15: 1.5
A16: Oct | B16: None | C16: 0.35 | D16: 4.2 | E16: 10 | F16: 0.365 | G16: 0.9 | K16: Oct | L16: 0.5 | M16: 4.2 | N16: 0.52 | O16: 0.9
A17: Nov | B17: None | C17: 0.25 | D17: 2.6 | E17: 10 | F17: 0.22 | G17: 0.6 | K17: Nov | L17: 0.1 | M17: 2.6 | N17: 0.06 | O17: 0.4
A18: Dec | B18: None | C18: 0.2 | D18: 2.6 | E18: 10 | F18: 0.205 | G18: 0.7 | K18: Dec | L18: 0 | M18: 2.6 | N18: 0.04 | O18: 0.7
K19: Annual | L19: =AVERAGE(L7:L18) -> 0.9 | M19: =MAX(M7:M18) -> 15.1 | N19: =AVERAGE(N7:N18) -> 0.9872727273 | O19: =MAX(O7:O18) -> 3.9
J21: =+A5 -> 2024 | K21: mg/Nm3 | L21: Monthly mean of half-hourly averages | M21: Highest half- hourly average | N21: Monthly mean of daily averages | O21: Highest daily average
J22: A2 | K22: Jan | L22: 2.1 | M22: 7.2 | N22: 2.12 | O22: 4
K23: Feb | L23: 2.1 | M23: 7.1 | N23: 2.19 | O23: 5.1
K24: Mar | L24: 1.1 | M24: 4.6 | N24: 1.12 | O24: 2.1
K25: Apr | L25: 0.7 | M25: 4.4 | N25: 0.69 | O25: 1.8
K26: May | L26: 0.7 | M26: 7.2 | N26: 0.71 | O26: 1.5
K27: Jun | L27: 0.7 | M27: 1.9 | N27: 0.65 | O27: 0.8
K28: Jul | L28: 1.3 | M28: 8.1 | N28: 1.37 | O28: 3.5
K29: Aug | L29: 0.4 | M29: 2.5 | N29: 0.46 | O29: 0.9
K30: Sep | L30: 0.3 | M30: 1.8 | N30: 0.34 | O30: 0.7
K31: Oct | L31: 0.2 | M31: 1 | N31: 0.21 | O31: 0.4
K32: Nov | L32: 0.4 | M32: 2.1 | N32: 0.38 | O32: 0.6
K33: Dec | L33: 0.4 | M33: 1.9 | N33: 0.37 | O33: 0.7
K34: Annual | L34: =AVERAGE(L22:L33) -> 0.8666666667 | M34: =MAX(M22:M33) -> 8.1 | N34: =AVERAGE(N22:N33) -> 0.8841666667 | O34: =MAX(O22:O33) -> 5.1
J36: =+A5 -> 2024 | K36: mg/Nm3 | L36: Monthly mean of half-hourly averages | M36: Highest half- hourly average | N36: Monthly mean of daily averages | O36: Highest daily average
J37: A3 | K37: Jan
K38: Feb
K39: Mar
K40: Apr
K41: May
K42: Jun
K43: Jul
K44: Aug
K45: Sep
K46: Oct
K47: Nov
A48: Comments : | K48: Dec
A49: An indicated ELV value of zero in the table above means that no ammonia limit is/was set in the permit. No daily averages were recorded on Line 1 during June as the plant was shutdown for planned annual maintenance. | K49: Annual | L49: =AVERAGE(L37:L48) ->  | M49: =MAX(M37:M48) -> 0 | N49: =AVERAGE(N37:N48) ->  | O49: =MAX(O37:O48) -> 0
J51: =+A5 -> 2024 | K51: mg/Nm3 | L51: Monthly mean of half-hourly averages | M51: Highest half- hourly average | N51: Monthly mean of daily averages | O51: Highest daily average
J52: A4 | K52: Jan
K53: Feb
K54: Mar
K55: Apr
K56: May
K57: Jun
K58: Jul
K59: Aug
K60: Sep
K61: Oct
K62: Nov
K63: Dec
K64: Annual | L64: =AVERAGE(L52:L63) ->  | M64: =MAX(M52:M63) -> 0 | N64: =AVERAGE(N52:N63) ->  | O64: =MAX(O52:O63) -> 0
J66: =+A5 -> 2024 | K66: mg/Nm3 | L66: Monthly mean of half-hourly averages | M66: Highest half- hourly average | N66: Monthly mean of daily averages | O66: Highest daily average
J67: A5 | K67: Jan
K68: Feb
K69: Mar
K70: Apr
K71: May
K72: Jun
K73: Jul
K74: Aug
K75: Sep
K76: Oct
K77: Nov
K78: Dec
K79: Annual | L79: =AVERAGE(L67:L78) ->  | M79: =MAX(M67:M78) -> 0 | N79: =AVERAGE(N67:N78) ->  | O79: =MAX(O67:O78) -> 0

Sheet Template changes log
A1: Log of changes to template (Environment Agency use only)
A3: Date | B3: Description of change | C3: New version number and date
A4: 2024-01-16 | B4: Air (periodic) tab: corrected default O2 reference from 6 to 11% | C4: Version 23.5a (for incinerators) - 16/01/2024
A5: 2024-09-23 | B5: Air (periodic) tab: corrected symbol for Thallium to Tl
A6: 2024-09-23 | B6: Air (periodic) tab: removed last year's references to different emission limit values applying from 03/12/23 and updated all relevant ELVs
A7: 2024-09-23 | B7: Tabs for continuously monitored pollutants (HCl, SO2 etc.): changed terminology in table headings to improve clarity
A8: 2024-09-23 | B8: Tabs for continuously monitored pollutants (HCl, SO2 etc.): removed last year's references to different emission limit values applying from 03/12/23 and updated all relevant ELVs
A9: 2024-09-23 | B9: Perf 1 tab: updated formula for water usage to report m3 rather than litres and corrected error with formula copying operator name
A10: 2024-09-23 | B10: Operational Summary tab: table added on start-up's and shut-downs
A11: 2024-09-23 | B11: Operational Summary tab: table added on dioxins and mercury protocols
A12: 2024-09-23 | B12: Operational Summary tab: table added on AST, QAL 2 and calibration functions
A13: 2024-09-23 | B13: CO2 N2O tab: various changes made to notes to reflect the fact that most plants should now have calibrated CEMS and flow meters + some have C14 samplers and more up to date industry data | C13: Version 24a (for incinerators) - 23/09/24
A14: 2024-01-08 | B14: CO2 N2O tab: Changed the N2O CO2 equivalence factor from 298 to 265 in line with recently updated government greenhouse gas figures: https://www.gov.uk/government/publications/greenhouse-gas-reporting-conversion-factors-2024
A15: 2024-01-08 | B15: CO2 N2O tab: Added an additional requirement for municipal EfW plants to state the yearly average biogenic percentage of the waste by mass, and reference to a document which sets out a methodology for calculating NCV of waste from the results of C14 sampling.
A16: 2024-01-08 | B16: Permit Compliance tab: Two additional columns added + explanatory notes to the table entitled "Summary of non-compliances under the permit" to allow CCS scores to be stated where relevant.
A17: 2024-01-08 | B17: Residue Quality tab: Note added explaining application of TOC and LOI limits and asking operators to report both metrics where measured. | C17: Version 24.1a (for incinerators) - 08/11/24
